Workbook

Sheet FACTURE
B2: Onglet automatique, ne pas modifier | E2: Sélectionnez le numéro de facture : | H2: F00001
B3: Vous pouvez consulter, imprimer ou transformer en PDF cette facture
E6: FACTURE N° | G6: =H2 -> F00001
F7: Date : | G7: =HLOOKUP($H$2,'[1]Base Facturation'!$C$5:$ALN$61,4,0) -> 2020-10-01
E10: A :
E11: Adresse :
F14: =IF(IF(ISERROR(VLOOKUP($K$2,'[1]Base Clients'!$A$6:$L$736,8,0)),"",VLOOKUP($K$2,'[1]Base Clients'!$A$6:$L$736,8,0))=0,"",IF(ISERROR(VLOOKUP($K$2,'[1]Base Clients'!$A$6:$L$736,8,0)),"",VLOOKUP($K$2,'[1]Base Clients'!$A$6:$L$736,8,0))) -> 
E15: Code client : | F15: =K2 -> 0
K19: ='[1]Vos données'!B19 -> 0.055 | L19: ='[1]Vos données'!B20 -> 0.1 | M19: ='[1]Vos données'!B21 -> 0.2
C20: Référence | D20: Description | E20: PU HT | F20: Quantité | G20: Montant HT | H20: Taux TVA | K20: Montant TVA taux 1 | L20: Montant TVA taux 2 | M20: Montant TVA taux 3 | N20: Total TVA | O20: Ordre | P20: Somme | Q20: Référence | R20: Quantité | S20: Taux de TVA | T20: Rang | U20: Rang 2
A22: 5 | C22: =IF(ISERROR(VLOOKUP($U22,$P$22:$T$621,2,0)),"",VLOOKUP($U22,$P$22:$T$621,2,0)) -> P0012 | D22: =IF(ISERROR(VLOOKUP(C22,'[1]Base Produits'!$A$8:$H$607,2,0)),"",VLOOKUP(C22,'[1]Base Produits'!$A$8:$H$607,2,0)) -> TotDistNuit - Distribution de Nuit- Du Lundi au samedi | E22: =IF(ISERROR(VLOOKUP(C22,'[1]Base Produits'!$A$8:$H$607,3,0)),"",VLOOKUP(C22,'[1]Base Produits'!$A$8:$H$607,3,0)) -> 2.2 | F22: =IF(ISERROR(VLOOKUP($U22,$P$22:$T$621,3,0)),"",VLOOKUP($U22,$P$22:$T$621,3,0)) -> 2425 | G22: =IF(ISERROR(E22*F22),"",E22*F22) -> 5335 | H22: =IF(ISERROR(VLOOKUP($U22,$P$22:$T$621,4,0)),"",VLOOKUP($U22,$P$22:$T$621,4,0)) -> 0.2 | K22: =IF($H22=K$19,$H22*$G22,0) -> 0 | L22: =IF($H22=L$19,$H22*$G22,0) -> 0 | M22: 1067 | N22: =IF(ISERROR(G22*H22),0,G22*H22) -> 1067 | O22: =IF(R22>0,1,"") ->  | P22: =O22 ->  | Q22: ='[1]Base Produits'!A8 -> P0001 | R22: =HLOOKUP($H$2,'[1]Base Facturation'!$C$5:$ALN$611,T22,0) -> 0 | S22: ='[1]Base Produits'!D8 -> 0.2 | T22: 8 | U22: 1
C23: =IF(ISERROR(VLOOKUP($U23,$P$22:$T$621,2,0)),"",VLOOKUP($U23,$P$22:$T$621,2,0)) -> P0025 | D23: =IF(ISERROR(VLOOKUP(C23,'[1]Base Produits'!$A$8:$H$607,2,0)),"",VLOOKUP(C23,'[1]Base Produits'!$A$8:$H$607,2,0)) -> TotDistJour - Distribution de Jour- Du Lundi au samedi | E23: =IF(ISERROR(VLOOKUP(C23,'[1]Base Produits'!$A$8:$H$607,3,0)),"",VLOOKUP(C23,'[1]Base Produits'!$A$8:$H$607,3,0)) -> 3.8 | F23: =IF(ISERROR(VLOOKUP($U23,$P$22:$T$621,3,0)),"",VLOOKUP($U23,$P$22:$T$621,3,0)) -> 11407 | G23: =IF(ISERROR(E23*F23),"",E23*F23) -> 43346.6 | H23: =IF(ISERROR(VLOOKUP($U23,$P$22:$T$621,4,0)),"",VLOOKUP($U23,$P$22:$T$621,4,0)) -> 0.2 | K23: =IF($H23=K$19,$H23*$G23,0) -> 0 | L23: 0 | M23: 8669.32 | N23: =IF(ISERROR(G23*H23),0,G23*H23) -> 8669.32 | P23: =SUM($O$22:O23) -> 0 | Q23: ='[1]Base Produits'!A9 -> P0002 | R23: =HLOOKUP($H$2,'[1]Base Facturation'!$C$5:$ALN$611,T23,0) -> 0 | S23: ='[1]Base Produits'!D9 -> 0.2 | T23: 9 | U23: 2
C24: P0026 | D24: =IF(ISERROR(VLOOKUP(C24,'[1]Base Produits'!$A$8:$H$607,2,0)),"",VLOOKUP(C24,'[1]Base Produits'!$A$8:$H$607,2,0)) -> 1342045 - Forfait Distribution -PILAT | E24: =IF(ISERROR(VLOOKUP(C24,'[1]Base Produits'!$A$8:$H$607,3,0)),"",VLOOKUP(C24,'[1]Base Produits'!$A$8:$H$607,3,0)) -> 25 | F24: 4 | G24: 100 | H24: 0.2 | K24: =IF($H24=K$19,$H24*$G24,0) -> 0 | L24: 0 | M24: 20 | N24: =IF(ISERROR(G24*H24),0,G24*H24) -> 20 | P24: =SUM($O$22:O24) -> 0 | Q24: ='[1]Base Produits'!A10 -> P0003 | R24: =HLOOKUP($H$2,'[1]Base Facturation'!$C$5:$ALN$611,T24,0) -> 0 | S24: ='[1]Base Produits'!D10 -> 0.2 | T24: 10 | U24: 3
C25: P0027 | D25: =IF(ISERROR(VLOOKUP(C25,'[1]Base Produits'!$A$8:$H$607,2,0)),"",VLOOKUP(C25,'[1]Base Produits'!$A$8:$H$607,2,0)) -> 1342046 - Forfait Distribution -Retour Astom Médical 35572 | E25: =IF(ISERROR(VLOOKUP(C25,'[1]Base Produits'!$A$8:$H$607,3,0)),"",VLOOKUP(C25,'[1]Base Produits'!$A$8:$H$607,3,0)) -> 45 | F25: 22 | G25: 990 | H25: 0.2 | K25: 0 | L25: 0 | M25: 198 | N25: 198 | P25: =SUM($O$22:O25) -> 0 | Q25: ='[1]Base Produits'!A11 -> P0004 | R25: =HLOOKUP($H$2,'[1]Base Facturation'!$C$5:$ALN$611,T25,0) -> 0 | S25: ='[1]Base Produits'!D11 -> 0.2 | T25: 11 | U25: 4
C26: P0028 | D26: =IF(ISERROR(VLOOKUP(C26,'[1]Base Produits'!$A$8:$H$607,2,0)),"",VLOOKUP(C26,'[1]Base Produits'!$A$8:$H$607,2,0)) -> 2142001 - Ramasse le matin 42 - Points Collecte Matin | E26: =IF(ISERROR(VLOOKUP(C26,'[1]Base Produits'!$A$8:$H$607,3,0)),"",VLOOKUP(C26,'[1]Base Produits'!$A$8:$H$607,3,0)) -> 3.8 | F26: 192 | G26: 729.6 | H26: 0.2 | K26: 0 | L26: 0 | M26: 145.92 | N26: 145.92 | P26: =SUM($O$22:O26) -> 0 | Q26: ='[1]Base Produits'!A12 -> P0005 | R26: =HLOOKUP($H$2,'[1]Base Facturation'!$C$5:$ALN$611,T26,0) -> 0 | S26: ='[1]Base Produits'!D12 -> 0.2 | T26: 12 | U26: 5
C27: P0029 | D27: =IF(ISERROR(VLOOKUP(C27,'[1]Base Produits'!$A$8:$H$607,2,0)),"",VLOOKUP(C27,'[1]Base Produits'!$A$8:$H$607,2,0)) -> 2142003 - St-Etienne APM - Ramassage jour | E27: =IF(ISERROR(VLOOKUP(C27,'[1]Base Produits'!$A$8:$H$607,3,0)),"",VLOOKUP(C27,'[1]Base Produits'!$A$8:$H$607,3,0)) -> 280 | F27: 22 | G27: 6160 | H27: 0.2 | K27: 0 | L27: 0 | M27: 1232 | N27: 1232 | P27: =SUM($O$22:O27) -> 0 | Q27: ='[1]Base Produits'!A13 -> P0006 | R27: =HLOOKUP($H$2,'[1]Base Facturation'!$C$5:$ALN$611,T27,0) -> 0 | S27: ='[1]Base Produits'!D13 -> 0.2 | T27: 13 | U27: 6
C28: P0030 | D28: =IF(ISERROR(VLOOKUP(C28,'[1]Base Produits'!$A$8:$H$607,2,0)),"",VLOOKUP(C28,'[1]Base Produits'!$A$8:$H$607,2,0)) -> 2242001 - Forfait Ramasse - Astom Médical | E28: =IF(ISERROR(VLOOKUP(C28,'[1]Base Produits'!$A$8:$H$607,3,0)),"",VLOOKUP(C28,'[1]Base Produits'!$A$8:$H$607,3,0)) -> 35 | F28: 22 | G28: 770 | H28: 0.2 | K28: 0 | L28: 0 | M28: 154 | N28: 154 | P28: =SUM($O$22:O28) -> 0 | Q28: ='[1]Base Produits'!A14 -> P0007 | R28: =HLOOKUP($H$2,'[1]Base Facturation'!$C$5:$ALN$611,T28,0) -> 0 | S28: ='[1]Base Produits'!D14 -> 0.2 | T28: 14 | U28: 7
C29: P0031 | D29: =IF(ISERROR(VLOOKUP(C29,'[1]Base Produits'!$A$8:$H$607,2,0)),"",VLOOKUP(C29,'[1]Base Produits'!$A$8:$H$607,2,0)) -> 2242005 - Collecte Matin Bouygues Telecom | E29: =IF(ISERROR(VLOOKUP(C29,'[1]Base Produits'!$A$8:$H$607,3,0)),"",VLOOKUP(C29,'[1]Base Produits'!$A$8:$H$607,3,0)) -> 8.5 | F29: 108 | G29: 918 | H29: 0.2 | K29: 0 | L29: 0 | M29: 183.6 | N29: 183.6 | P29: =SUM($O$22:O29) -> 0 | Q29: ='[1]Base Produits'!A15 -> P0008 | R29: =HLOOKUP($H$2,'[1]Base Facturation'!$C$5:$ALN$611,T29,0) -> 0 | S29: ='[1]Base Produits'!D15 -> 0.2 | T29: 15 | U29: 8
C30: P0032 | D30: =IF(ISERROR(VLOOKUP(C30,'[1]Base Produits'!$A$8:$H$607,2,0)),"",VLOOKUP(C30,'[1]Base Produits'!$A$8:$H$607,2,0)) -> 2242007-1 - Enlèvement Gibaud - Tour 1 | E30: =IF(ISERROR(VLOOKUP(C30,'[1]Base Produits'!$A$8:$H$607,3,0)),"",VLOOKUP(C30,'[1]Base Produits'!$A$8:$H$607,3,0)) -> 35 | F30: 22 | G30: 770 | H30: 0.2 | K30: 0 | L30: 0 | M30: 154 | N30: 154 | P30: =SUM($O$22:O30) -> 0 | Q30: ='[1]Base Produits'!A16 -> P0009 | R30: =HLOOKUP($H$2,'[1]Base Facturation'!$C$5:$ALN$611,T30,0) -> 0 | S30: ='[1]Base Produits'!D16 -> 0.2 | T30: 16 | U30: 9
C31: P0033 | D31: =IF(ISERROR(VLOOKUP(C31,'[1]Base Produits'!$A$8:$H$607,2,0)),"",VLOOKUP(C31,'[1]Base Produits'!$A$8:$H$607,2,0)) -> 2242007-2 - Enlèvement Gibaud - Tour 2 | E31: =IF(ISERROR(VLOOKUP(C31,'[1]Base Produits'!$A$8:$H$607,3,0)),"",VLOOKUP(C31,'[1]Base Produits'!$A$8:$H$607,3,0)) -> 35 | F31: 22 | G31: 770 | H31: 0.2 | K31: 0 | L31: 0 | M31: 154 | N31: 154 | P31: =SUM($O$22:O31) -> 0 | Q31: ='[1]Base Produits'!A17 -> P0010 | R31: =HLOOKUP($H$2,'[1]Base Facturation'!$C$5:$ALN$611,T31,0) -> 0 | S31: ='[1]Base Produits'!D17 -> 0.2 | T31: 17 | U31: 10
C32: P0034 | D32: =IF(ISERROR(VLOOKUP(C32,'[1]Base Produits'!$A$8:$H$607,2,0)),"",VLOOKUP(C32,'[1]Base Produits'!$A$8:$H$607,2,0)) -> 7142001 - Distribution SPAREPART - Tournée nuit SP | E32: =IF(ISERROR(VLOOKUP(C32,'[1]Base Produits'!$A$8:$H$607,3,0)),"",VLOOKUP(C32,'[1]Base Produits'!$A$8:$H$607,3,0)) -> 7 | F32: 113 | G32: 791 | H32: 0.2 | K32: 0 | L32: 0 | M32: 158.2 | N32: 158.2 | P32: =SUM($O$22:O32) -> 0 | Q32: ='[1]Base Produits'!A18 -> P0011 | R32: =HLOOKUP($H$2,'[1]Base Facturation'!$C$5:$ALN$611,T32,0) -> 0 | S32: ='[1]Base Produits'!D18 -> 0.2 | T32: 18 | U32: 11
C33: P0043 | D33: =IF(ISERROR(VLOOKUP(C33,'[1]Base Produits'!$A$8:$H$607,2,0)),"",VLOOKUP(C33,'[1]Base Produits'!$A$8:$H$607,2,0)) -> ASF Veauche | E33: =IF(ISERROR(VLOOKUP(C33,'[1]Base Produits'!$A$8:$H$607,3,0)),"",VLOOKUP(C33,'[1]Base Produits'!$A$8:$H$607,3,0)) -> 45 | F33: 5 | G33: 225 | H33: 0.2 | K33: 0 | L33: 0 | M33: 45 | N33: 45 | O33: 1 | P33: =SUM($O$22:O33) -> 1 | Q33: ='[1]Base Produits'!A19 -> P0012 | R33: =HLOOKUP($H$2,'[1]Base Facturation'!$C$5:$ALN$611,T33,0) -> 2425 | S33: ='[1]Base Produits'!D19 -> 0.2 | T33: 19 | U33: 12
C34: P0044 | D34: =IF(ISERROR(VLOOKUP(C34,'[1]Base Produits'!$A$8:$H$607,2,0)),"",VLOOKUP(C34,'[1]Base Produits'!$A$8:$H$607,2,0)) -> Auto poid lourd 42 | E34: =IF(ISERROR(VLOOKUP(C34,'[1]Base Produits'!$A$8:$H$607,3,0)),"",VLOOKUP(C34,'[1]Base Produits'!$A$8:$H$607,3,0)) -> 35 | F34: 5 | G34: 175 | H34: 0.2 | K34: 0 | L34: 0 | M34: 35 | N34: 35 | P34: =SUM($O$22:O34) -> 1 | Q34: ='[1]Base Produits'!A20 -> P0013 | R34: =HLOOKUP($H$2,'[1]Base Facturation'!$C$5:$ALN$611,T34,0) -> 0 | S34: ='[1]Base Produits'!D20 -> 0.2 | T34: 20 | U34: 13
C35: P0045 | D35: =IF(ISERROR(VLOOKUP(C35,'[1]Base Produits'!$A$8:$H$607,2,0)),"",VLOOKUP(C35,'[1]Base Produits'!$A$8:$H$607,2,0)) -> Boite aux Lettres | E35: =IF(ISERROR(VLOOKUP(C35,'[1]Base Produits'!$A$8:$H$607,3,0)),"",VLOOKUP(C35,'[1]Base Produits'!$A$8:$H$607,3,0)) -> 45 | F35: 5 | G35: 225 | H35: 0.2 | K35: 0 | L35: 0 | M35: 45 | N35: 45 | P35: =SUM($O$22:O35) -> 1 | Q35: ='[1]Base Produits'!A21 -> P0014 | R35: =HLOOKUP($H$2,'[1]Base Facturation'!$C$5:$ALN$611,T35,0) -> 0 | S35: ='[1]Base Produits'!D21 -> 0.2 | T35: 21 | U35: 14
C36: P0046 | D36: =IF(ISERROR(VLOOKUP(C36,'[1]Base Produits'!$A$8:$H$607,2,0)),"",VLOOKUP(C36,'[1]Base Produits'!$A$8:$H$607,2,0)) -> Bouygues Télécom Saint-Etienne C2 | E36: =IF(ISERROR(VLOOKUP(C36,'[1]Base Produits'!$A$8:$H$607,3,0)),"",VLOOKUP(C36,'[1]Base Produits'!$A$8:$H$607,3,0)) -> 35 | F36: 5 | G36: 175 | H36: 0.2 | K36: 0 | L36: 0 | M36: 35 | N36: 35 | P36: =SUM($O$22:O36) -> 1 | Q36: ='[1]Base Produits'!A22 -> P0015 | R36: =HLOOKUP($H$2,'[1]Base Facturation'!$C$5:$ALN$611,T36,0) -> 0 | S36: ='[1]Base Produits'!D22 -> 0.2 | T36: 22 | U36: 15
C37: P0047 | D37: =IF(ISERROR(VLOOKUP(C37,'[1]Base Produits'!$A$8:$H$607,2,0)),"",VLOOKUP(C37,'[1]Base Produits'!$A$8:$H$607,2,0)) -> Bouygues Télécom Villars | E37: =IF(ISERROR(VLOOKUP(C37,'[1]Base Produits'!$A$8:$H$607,3,0)),"",VLOOKUP(C37,'[1]Base Produits'!$A$8:$H$607,3,0)) -> 35 | F37: 5 | G37: 175 | H37: 0.2 | K37: 0 | L37: 0 | M37: 35 | N37: 35 | P37: =SUM($O$22:O37) -> 1 | Q37: ='[1]Base Produits'!A23 -> P0016 | R37: =HLOOKUP($H$2,'[1]Base Facturation'!$C$5:$ALN$611,T37,0) -> 0 | S37: ='[1]Base Produits'!D23 -> 0.2 | T37: 23 | U37: 16
C38: P0048 | D38: =IF(ISERROR(VLOOKUP(C38,'[1]Base Produits'!$A$8:$H$607,2,0)),"",VLOOKUP(C38,'[1]Base Produits'!$A$8:$H$607,2,0)) -> Centre Auto Plaine Bellegarde 42 | E38: =IF(ISERROR(VLOOKUP(C38,'[1]Base Produits'!$A$8:$H$607,3,0)),"",VLOOKUP(C38,'[1]Base Produits'!$A$8:$H$607,3,0)) -> 35 | F38: 5 | G38: 175 | H38: 0.2 | K38: 0 | L38: 0 | M38: 35 | N38: 35 | P38: =SUM($O$22:O38) -> 1 | Q38: ='[1]Base Produits'!A24 -> P0017 | R38: =HLOOKUP($H$2,'[1]Base Facturation'!$C$5:$ALN$611,T38,0) -> 0 | S38: ='[1]Base Produits'!D24 -> 0.2 | T38: 24 | U38: 17
C39: P0049 | D39: =IF(ISERROR(VLOOKUP(C39,'[1]Base Produits'!$A$8:$H$607,2,0)),"",VLOOKUP(C39,'[1]Base Produits'!$A$8:$H$607,2,0)) -> Centre Hospitalier de la Loire | E39: =IF(ISERROR(VLOOKUP(C39,'[1]Base Produits'!$A$8:$H$607,3,0)),"",VLOOKUP(C39,'[1]Base Produits'!$A$8:$H$607,3,0)) -> 30 | F39: 5 | G39: 150 | H39: 0.2 | K39: 0 | L39: 0 | M39: 30 | N39: 30 | P39: =SUM($O$22:O39) -> 1 | Q39: ='[1]Base Produits'!A25 -> P0018 | R39: =HLOOKUP($H$2,'[1]Base Facturation'!$C$5:$ALN$611,T39,0) -> 0 | S39: ='[1]Base Produits'!D25 -> 0.2 | T39: 25 | U39: 18
C40: P0050 | D40: =IF(ISERROR(VLOOKUP(C40,'[1]Base Produits'!$A$8:$H$607,2,0)),"",VLOOKUP(C40,'[1]Base Produits'!$A$8:$H$607,2,0)) -> CHU DMS | E40: =IF(ISERROR(VLOOKUP(C40,'[1]Base Produits'!$A$8:$H$607,3,0)),"",VLOOKUP(C40,'[1]Base Produits'!$A$8:$H$607,3,0)) -> 35 | F40: 5 | G40: 175 | H40: 0.2 | K40: 0 | L40: 0 | M40: 35 | N40: 35 | P40: =SUM($O$22:O40) -> 1 | Q40: ='[1]Base Produits'!A26 -> P0019 | R40: =HLOOKUP($H$2,'[1]Base Facturation'!$C$5:$ALN$611,T40,0) -> 0 | S40: ='[1]Base Produits'!D26 -> 0.2 | T40: 26 | U40: 19
C41: P0051 | D41: =IF(ISERROR(VLOOKUP(C41,'[1]Base Produits'!$A$8:$H$607,2,0)),"",VLOOKUP(C41,'[1]Base Produits'!$A$8:$H$607,2,0)) -> Clinique Mutualiste | E41: =IF(ISERROR(VLOOKUP(C41,'[1]Base Produits'!$A$8:$H$607,3,0)),"",VLOOKUP(C41,'[1]Base Produits'!$A$8:$H$607,3,0)) -> 35 | F41: 5 | G41: 175 | H41: 0.2 | K41: 0 | L41: 0 | M41: 35 | N41: 35 | P41: =SUM($O$22:O41) -> 1 | Q41: ='[1]Base Produits'!A27 -> P0020 | R41: =HLOOKUP($H$2,'[1]Base Facturation'!$C$5:$ALN$611,T41,0) -> 0 | S41: ='[1]Base Produits'!D27 -> 0.2 | T41: 27 | U41: 20
C42: P0052 | D42: =IF(ISERROR(VLOOKUP(C42,'[1]Base Produits'!$A$8:$H$607,2,0)),"",VLOOKUP(C42,'[1]Base Produits'!$A$8:$H$607,2,0)) -> EIS | E42: =IF(ISERROR(VLOOKUP(C42,'[1]Base Produits'!$A$8:$H$607,3,0)),"",VLOOKUP(C42,'[1]Base Produits'!$A$8:$H$607,3,0)) -> 35 | F42: 5 | G42: 175 | H42: 0.2 | K42: 0 | L42: 0 | M42: 35 | N42: 35 | P42: =SUM($O$22:O42) -> 1 | Q42: ='[1]Base Produits'!A28 -> P0021 | R42: =HLOOKUP($H$2,'[1]Base Facturation'!$C$5:$ALN$611,T42,0) -> 0 | S42: ='[1]Base Produits'!D28 -> 0.2 | T42: 28 | U42: 21
C43: P0053 | D43: =IF(ISERROR(VLOOKUP(C43,'[1]Base Produits'!$A$8:$H$607,2,0)),"",VLOOKUP(C43,'[1]Base Produits'!$A$8:$H$607,2,0)) -> EPA/EDA | E43: =IF(ISERROR(VLOOKUP(C43,'[1]Base Produits'!$A$8:$H$607,3,0)),"",VLOOKUP(C43,'[1]Base Produits'!$A$8:$H$607,3,0)) -> 35 | F43: 5 | G43: 175 | H43: 0.2 | K43: 0 | L43: 0 | M43: 35 | N43: 35 | P43: =SUM($O$22:O43) -> 1 | Q43: ='[1]Base Produits'!A29 -> P0022 | R43: =HLOOKUP($H$2,'[1]Base Facturation'!$C$5:$ALN$611,T43,0) -> 0 | S43: ='[1]Base Produits'!D29 -> 0.2 | T43: 29 | U43: 22
C44: P0054 | D44: =IF(ISERROR(VLOOKUP(C44,'[1]Base Produits'!$A$8:$H$607,2,0)),"",VLOOKUP(C44,'[1]Base Produits'!$A$8:$H$607,2,0)) -> Gibaud | E44: =IF(ISERROR(VLOOKUP(C44,'[1]Base Produits'!$A$8:$H$607,3,0)),"",VLOOKUP(C44,'[1]Base Produits'!$A$8:$H$607,3,0)) -> 35 | F44: 5 | G44: 175 | H44: 0.2 | K44: 0 | L44: 0 | M44: 35 | N44: 35 | P44: =SUM($O$22:O44) -> 1 | Q44: ='[1]Base Produits'!A30 -> P0023 | R44: =HLOOKUP($H$2,'[1]Base Facturation'!$C$5:$ALN$611,T44,0) -> 0 | S44: ='[1]Base Produits'!D30 -> 0.2 | T44: 30 | U44: 23
C45: P0055 | D45: =IF(ISERROR(VLOOKUP(C45,'[1]Base Produits'!$A$8:$H$607,2,0)),"",VLOOKUP(C45,'[1]Base Produits'!$A$8:$H$607,2,0)) -> Grand format | E45: =IF(ISERROR(VLOOKUP(C45,'[1]Base Produits'!$A$8:$H$607,3,0)),"",VLOOKUP(C45,'[1]Base Produits'!$A$8:$H$607,3,0)) -> 45 | F45: 5 | G45: 225 | H45: 0.2 | K45: 0 | L45: 0 | M45: 45 | N45: 45 | P45: =SUM($O$22:O45) -> 1 | Q45: ='[1]Base Produits'!A31 -> P0024 | R45: =HLOOKUP($H$2,'[1]Base Facturation'!$C$5:$ALN$611,T45,0) -> 0 | S45: ='[1]Base Produits'!D31 -> 0.2 | T45: 31 | U45: 24
C46: P0056 | D46: =IF(ISERROR(VLOOKUP(C46,'[1]Base Produits'!$A$8:$H$607,2,0)),"",VLOOKUP(C46,'[1]Base Produits'!$A$8:$H$607,2,0)) -> HOPI | E46: =IF(ISERROR(VLOOKUP(C46,'[1]Base Produits'!$A$8:$H$607,3,0)),"",VLOOKUP(C46,'[1]Base Produits'!$A$8:$H$607,3,0)) -> 35 | F46: 5 | G46: 175 | H46: 0.2 | K46: 0 | L46: 0 | M46: 35 | N46: 35 | O46: 1 | P46: =SUM($O$22:O46) -> 2 | Q46: ='[1]Base Produits'!A32 -> P0025 | R46: =HLOOKUP($H$2,'[1]Base Facturation'!$C$5:$ALN$611,T46,0) -> 11407 | S46: ='[1]Base Produits'!D32 -> 0.2 | T46: 32 | U46: 25
C47: P0057 | D47: =IF(ISERROR(VLOOKUP(C47,'[1]Base Produits'!$A$8:$H$607,2,0)),"",VLOOKUP(C47,'[1]Base Produits'!$A$8:$H$607,2,0)) -> HPL | E47: =IF(ISERROR(VLOOKUP(C47,'[1]Base Produits'!$A$8:$H$607,3,0)),"",VLOOKUP(C47,'[1]Base Produits'!$A$8:$H$607,3,0)) -> 35 | F47: 5 | G47: 175 | H47: 0.2 | K47: 0 | L47: 0 | M47: 35 | N47: 35 | O47: 1 | P47: =SUM($O$22:O47) -> 3 | Q47: ='[1]Base Produits'!A33 -> P0026 | R47: =HLOOKUP($H$2,'[1]Base Facturation'!$C$5:$ALN$611,T47,0) -> 4 | S47: ='[1]Base Produits'!D33 -> 0.2 | T47: 33 | U47: 26
C48: P0058 | D48: =IF(ISERROR(VLOOKUP(C48,'[1]Base Produits'!$A$8:$H$607,2,0)),"",VLOOKUP(C48,'[1]Base Produits'!$A$8:$H$607,2,0)) -> Leclerc Andrézieux - Prestation 20m3 | E48: =IF(ISERROR(VLOOKUP(C48,'[1]Base Produits'!$A$8:$H$607,3,0)),"",VLOOKUP(C48,'[1]Base Produits'!$A$8:$H$607,3,0)) -> 55 | F48: 5 | G48: 275 | H48: 0.2 | K48: 0 | L48: 0 | M48: 55 | N48: 55 | O48: 1 | P48: =SUM($O$22:O48) -> 4 | Q48: ='[1]Base Produits'!A34 -> P0027 | R48: =HLOOKUP($H$2,'[1]Base Facturation'!$C$5:$ALN$611,T48,0) -> 22 | S48: ='[1]Base Produits'!D34 -> 0.2 | T48: 34 | U48: 27
C49: P0059 | D49: =IF(ISERROR(VLOOKUP(C49,'[1]Base Produits'!$A$8:$H$607,2,0)),"",VLOOKUP(C49,'[1]Base Produits'!$A$8:$H$607,2,0)) -> Leclerc Andrézieux - Prestation normale | E49: =IF(ISERROR(VLOOKUP(C49,'[1]Base Produits'!$A$8:$H$607,3,0)),"",VLOOKUP(C49,'[1]Base Produits'!$A$8:$H$607,3,0)) -> 45 | F49: 5 | G49: 225 | H49: 0.2 | K49: 0 | L49: 0 | M49: 45 | N49: 45 | O49: 1 | P49: =SUM($O$22:O49) -> 5 | Q49: ='[1]Base Produits'!A35 -> P0028 | R49: =HLOOKUP($H$2,'[1]Base Facturation'!$C$5:$ALN$611,T49,0) -> 192 | S49: ='[1]Base Produits'!D35 -> 0.2 | T49: 35 | U49: 28
C50: P0060 | D50: =IF(ISERROR(VLOOKUP(C50,'[1]Base Produits'!$A$8:$H$607,2,0)),"",VLOOKUP(C50,'[1]Base Produits'!$A$8:$H$607,2,0)) -> Leclerc Andrézieux - Prestation volume | E50: =IF(ISERROR(VLOOKUP(C50,'[1]Base Produits'!$A$8:$H$607,3,0)),"",VLOOKUP(C50,'[1]Base Produits'!$A$8:$H$607,3,0)) -> 35 | F50: 5 | G50: 175 | H50: 0.2 | K50: 0 | L50: 0 | M50: 35 | N50: 35 | O50: 1 | P50: =SUM($O$22:O50) -> 6 | Q50: ='[1]Base Produits'!A36 -> P0029 | R50: =HLOOKUP($H$2,'[1]Base Facturation'!$C$5:$ALN$611,T50,0) -> 22 | S50: ='[1]Base Produits'!D36 -> 0.2 | T50: 36 | U50: 29
C51: P0061 | E51: =IF(ISERROR(VLOOKUP(C51,'[1]Base Produits'!$A$8:$H$607,3,0)),"",VLOOKUP(C51,'[1]Base Produits'!$A$8:$H$607,3,0)) -> 55 | F51: 5 | G51: 275 | H51: 0.2 | K51: 0 | L51: 0 | M51: 55 | N51: 55 | O51: 1 | P51: =SUM($O$22:O51) -> 7 | Q51: ='[1]Base Produits'!A37 -> P0030 | R51: =HLOOKUP($H$2,'[1]Base Facturation'!$C$5:$ALN$611,T51,0) -> 22 | S51: ='[1]Base Produits'!D37 -> 0.2 | T51: 37 | U51: 30
C52: P0062 | E52: =IF(ISERROR(VLOOKUP(C52,'[1]Base Produits'!$A$8:$H$607,3,0)),"",VLOOKUP(C52,'[1]Base Produits'!$A$8:$H$607,3,0)) -> 35 | F52: 5 | G52: 175 | H52: 0.2 | K52: 0 | L52: 0 | M52: 35 | N52: 35 | O52: 1 | P52: =SUM($O$22:O52) -> 8 | Q52: ='[1]Base Produits'!A38 -> P0031 | R52: =HLOOKUP($H$2,'[1]Base Facturation'!$C$5:$ALN$611,T52,0) -> 108 | S52: ='[1]Base Produits'!D38 -> 0.2 | T52: 38 | U52: 31
C53: P0063 | E53: =IF(ISERROR(VLOOKUP(C53,'[1]Base Produits'!$A$8:$H$607,3,0)),"",VLOOKUP(C53,'[1]Base Produits'!$A$8:$H$607,3,0)) -> 45 | F53: 5 | G53: 225 | H53: 0.2 | K53: 0 | L53: 0 | M53: 45 | N53: 45 | O53: 1 | P53: =SUM($O$22:O53) -> 9 | Q53: ='[1]Base Produits'!A39 -> P0032 | R53: =HLOOKUP($H$2,'[1]Base Facturation'!$C$5:$ALN$611,T53,0) -> 22 | S53: ='[1]Base Produits'!D39 -> 0.2 | T53: 39 | U53: 32
C54: P0064 | D54: =IF(ISERROR(VLOOKUP(C54,'[1]Base Produits'!$A$8:$H$607,2,0)),"",VLOOKUP(C54,'[1]Base Produits'!$A$8:$H$607,2,0)) -> Micromania - C2 | E54: =IF(ISERROR(VLOOKUP(C54,'[1]Base Produits'!$A$8:$H$607,3,0)),"",VLOOKUP(C54,'[1]Base Produits'!$A$8:$H$607,3,0)) -> 35 | F54: 5 | G54: 175 | H54: 0.2 | K54: 0 | L54: 0 | M54: 35 | N54: 35 | O54: 1 | P54: =SUM($O$22:O54) -> 10 | Q54: ='[1]Base Produits'!A40 -> P0033 | R54: =HLOOKUP($H$2,'[1]Base Facturation'!$C$5:$ALN$611,T54,0) -> 22 | S54: ='[1]Base Produits'!D40 -> 0.2 | T54: 40 | U54: 33
C55: P0065 | D55: =IF(ISERROR(VLOOKUP(C55,'[1]Base Produits'!$A$8:$H$607,2,0)),"",VLOOKUP(C55,'[1]Base Produits'!$A$8:$H$607,2,0)) -> Micromania - Villars | E55: =IF(ISERROR(VLOOKUP(C55,'[1]Base Produits'!$A$8:$H$607,3,0)),"",VLOOKUP(C55,'[1]Base Produits'!$A$8:$H$607,3,0)) -> 35 | F55: 5 | G55: 175 | H55: 0.2 | K55: 0 | L55: 0 | M55: 35 | N55: 35 | O55: 1 | P55: =SUM($O$22:O55) -> 11 | Q55: ='[1]Base Produits'!A41 -> P0034 | R55: =HLOOKUP($H$2,'[1]Base Facturation'!$C$5:$ALN$611,T55,0) -> 113 | S55: ='[1]Base Produits'!D41 -> 0.2 | T55: 41 | U55: 34
C56: P0066 | D56: =IF(ISERROR(VLOOKUP(C56,'[1]Base Produits'!$A$8:$H$607,2,0)),"",VLOOKUP(C56,'[1]Base Produits'!$A$8:$H$607,2,0)) -> Morassuti | E56: =IF(ISERROR(VLOOKUP(C56,'[1]Base Produits'!$A$8:$H$607,3,0)),"",VLOOKUP(C56,'[1]Base Produits'!$A$8:$H$607,3,0)) -> 45 | F56: 5 | G56: 225 | H56: 0.2 | K56: =IF($H56=K$19,$H56*$G56,0) -> 0 | L56: 0 | M56: 45 | N56: 45 | P56: =SUM($O$22:O56) -> 11 | Q56: ='[1]Base Produits'!A42 -> P0035 | R56: =HLOOKUP($H$2,'[1]Base Facturation'!$C$5:$ALN$611,T56,0) -> 0 | S56: ='[1]Base Produits'!D42 -> 0.2 | T56: 42 | U56: 35
C57: P0067 | D57: =IF(ISERROR(VLOOKUP(C57,'[1]Base Produits'!$A$8:$H$607,2,0)),"",VLOOKUP(C57,'[1]Base Produits'!$A$8:$H$607,2,0)) -> OCP | E57: =IF(ISERROR(VLOOKUP(C57,'[1]Base Produits'!$A$8:$H$607,3,0)),"",VLOOKUP(C57,'[1]Base Produits'!$A$8:$H$607,3,0)) -> 35 | F57: 5 | G57: 175 | H57: 0.2 | K57: 0 | L57: 0 | M57: 35 | N57: 35 | P57: =SUM($O$22:O57) -> 11 | Q57: ='[1]Base Produits'!A43 -> P0036 | R57: =HLOOKUP($H$2,'[1]Base Facturation'!$C$5:$ALN$611,T57,0) -> 0 | S57: ='[1]Base Produits'!D43 -> 0.2 | T57: 43 | U57: 36
C58: P0068 | D58: =IF(ISERROR(VLOOKUP(C58,'[1]Base Produits'!$A$8:$H$607,2,0)),"",VLOOKUP(C58,'[1]Base Produits'!$A$8:$H$607,2,0)) -> Pharmacie | E58: =IF(ISERROR(VLOOKUP(C58,'[1]Base Produits'!$A$8:$H$607,3,0)),"",VLOOKUP(C58,'[1]Base Produits'!$A$8:$H$607,3,0)) -> 35 | F58: 5 | G58: 175 | H58: 0.2 | K58: 0 | L58: 0 | M58: 35 | N58: 35 | P58: =SUM($O$22:O58) -> 11 | Q58: ='[1]Base Produits'!A44 -> P0037 | R58: =HLOOKUP($H$2,'[1]Base Facturation'!$C$5:$ALN$611,T58,0) -> 0 | S58: ='[1]Base Produits'!D44 -> 0.2 | T58: 44 | U58: 37
D59: =IF(ISERROR(VLOOKUP(C59,'[1]Base Produits'!$A$8:$H$607,2,0)),"",VLOOKUP(C59,'[1]Base Produits'!$A$8:$H$607,2,0)) ->  | E59: =IF(ISERROR(VLOOKUP(C59,'[1]Base Produits'!$A$8:$H$607,3,0)),"",VLOOKUP(C59,'[1]Base Produits'!$A$8:$H$607,3,0)) ->  | K59: 0 | L59: 0 | M59: 0 | N59: 0 | P59: =SUM($O$22:O59) -> 11 | Q59: ='[1]Base Produits'!A45 -> P0038 | R59: =HLOOKUP($H$2,'[1]Base Facturation'!$C$5:$ALN$611,T59,0) -> 0 | S59: ='[1]Base Produits'!D45 -> 0.2 | T59: 45 | U59: 38
D60: =IF(ISERROR(VLOOKUP(C60,'[1]Base Produits'!$A$8:$H$607,2,0)),"",VLOOKUP(C60,'[1]Base Produits'!$A$8:$H$607,2,0)) ->  | E60: =IF(ISERROR(VLOOKUP(C60,'[1]Base Produits'!$A$8:$H$607,3,0)),"",VLOOKUP(C60,'[1]Base Produits'!$A$8:$H$607,3,0)) ->  | K60: 0 | L60: 0 | M60: 0 | N60: 0 | P60: =SUM($O$22:O60) -> 11 | Q60: ='[1]Base Produits'!A46 -> P0039 | R60: =HLOOKUP($H$2,'[1]Base Facturation'!$C$5:$ALN$611,T60,0) -> 0 | S60: ='[1]Base Produits'!D46 -> 0.2 | T60: 46 | U60: 39
D61: =IF(ISERROR(VLOOKUP(C61,'[1]Base Produits'!$A$8:$H$607,2,0)),"",VLOOKUP(C61,'[1]Base Produits'!$A$8:$H$607,2,0)) ->  | E61: =IF(ISERROR(VLOOKUP(C61,'[1]Base Produits'!$A$8:$H$607,3,0)),"",VLOOKUP(C61,'[1]Base Produits'!$A$8:$H$607,3,0)) ->  | K61: 0 | L61: 0 | M61: 0 | N61: 0 | P61: =SUM($O$22:O61) -> 11 | Q61: ='[1]Base Produits'!A47 -> P0040 | R61: =HLOOKUP($H$2,'[1]Base Facturation'!$C$5:$ALN$611,T61,0) -> 0 | S61: ='[1]Base Produits'!D47 -> 0.2 | T61: 47 | U61: 40
D62: =IF(ISERROR(VLOOKUP(C62,'[1]Base Produits'!$A$8:$H$607,2,0)),"",VLOOKUP(C62,'[1]Base Produits'!$A$8:$H$607,2,0)) ->  | E62: =IF(ISERROR(VLOOKUP(C62,'[1]Base Produits'!$A$8:$H$607,3,0)),"",VLOOKUP(C62,'[1]Base Produits'!$A$8:$H$607,3,0)) ->  | K62: 0 | L62: 0 | M62: 0 | N62: 0 | P62: =SUM($O$22:O62) -> 11 | Q62: ='[1]Base Produits'!A48 -> P0041 | R62: =HLOOKUP($H$2,'[1]Base Facturation'!$C$5:$ALN$611,T62,0) -> 0 | S62: ='[1]Base Produits'!D48 -> 0.2 | T62: 48 | U62: 41
D63: =IF(ISERROR(VLOOKUP(C63,'[1]Base Produits'!$A$8:$H$607,2,0)),"",VLOOKUP(C63,'[1]Base Produits'!$A$8:$H$607,2,0)) ->  | E63: =IF(ISERROR(VLOOKUP(C63,'[1]Base Produits'!$A$8:$H$607,3,0)),"",VLOOKUP(C63,'[1]Base Produits'!$A$8:$H$607,3,0)) ->  | K63: 0 | L63: 0 | M63: 0 | N63: 0 | P63: =SUM($O$22:O63) -> 11 | Q63: ='[1]Base Produits'!A49 -> P0042 | R63: =HLOOKUP($H$2,'[1]Base Facturation'!$C$5:$ALN$611,T63,0) -> 0 | S63: ='[1]Base Produits'!D49 -> 0.2 | T63: 49 | U63: 42
D64: =IF(ISERROR(VLOOKUP(C64,'[1]Base Produits'!$A$8:$H$607,2,0)),"",VLOOKUP(C64,'[1]Base Produits'!$A$8:$H$607,2,0)) ->  | E64: =IF(ISERROR(VLOOKUP(C64,'[1]Base Produits'!$A$8:$H$607,3,0)),"",VLOOKUP(C64,'[1]Base Produits'!$A$8:$H$607,3,0)) ->  | K64: 0 | L64: 0 | M64: 0 | N64: 0 | O64: 1 | P64: =SUM($O$22:O64) -> 12 | Q64: ='[1]Base Produits'!A50 -> P0043 | R64: =HLOOKUP($H$2,'[1]Base Facturation'!$C$5:$ALN$611,T64,0) -> 5 | S64: ='[1]Base Produits'!D50 -> 0.2 | T64: 50 | U64: 43
D65: =IF(ISERROR(VLOOKUP(C65,'[1]Base Produits'!$A$8:$H$607,2,0)),"",VLOOKUP(C65,'[1]Base Produits'!$A$8:$H$607,2,0)) ->  | E65: =IF(ISERROR(VLOOKUP(C65,'[1]Base Produits'!$A$8:$H$607,3,0)),"",VLOOKUP(C65,'[1]Base Produits'!$A$8:$H$607,3,0)) ->  | K65: 0 | L65: 0 | M65: 0 | N65: 0 | O65: 1 | P65: =SUM($O$22:O65) -> 13 | Q65: ='[1]Base Produits'!A51 -> P0044 | R65: =HLOOKUP($H$2,'[1]Base Facturation'!$C$5:$ALN$611,T65,0) -> 5 | S65: ='[1]Base Produits'!D51 -> 0.2 | T65: 51 | U65: 44
D66: =IF(ISERROR(VLOOKUP(C66,'[1]Base Produits'!$A$8:$H$607,2,0)),"",VLOOKUP(C66,'[1]Base Produits'!$A$8:$H$607,2,0)) ->  | E66: =IF(ISERROR(VLOOKUP(C66,'[1]Base Produits'!$A$8:$H$607,3,0)),"",VLOOKUP(C66,'[1]Base Produits'!$A$8:$H$607,3,0)) ->  | K66: 0 | L66: 0 | M66: 0 | N66: 0 | O66: 1 | P66: =SUM($O$22:O66) -> 14 | Q66: ='[1]Base Produits'!A52 -> P0045 | R66: =HLOOKUP($H$2,'[1]Base Facturation'!$C$5:$ALN$611,T66,0) -> 5 | S66: ='[1]Base Produits'!D52 -> 0.2 | T66: 52 | U66: 45
D67: =IF(ISERROR(VLOOKUP(C67,'[1]Base Produits'!$A$8:$H$607,2,0)),"",VLOOKUP(C67,'[1]Base Produits'!$A$8:$H$607,2,0)) ->  | E67: =IF(ISERROR(VLOOKUP(C67,'[1]Base Produits'!$A$8:$H$607,3,0)),"",VLOOKUP(C67,'[1]Base Produits'!$A$8:$H$607,3,0)) ->  | K67: 0 | L67: 0 | M67: 0 | N67: 0 | O67: 1 | P67: =SUM($O$22:O67) -> 15 | Q67: ='[1]Base Produits'!A53 -> P0046 | R67: =HLOOKUP($H$2,'[1]Base Facturation'!$C$5:$ALN$611,T67,0) -> 5 | S67: ='[1]Base Produits'!D53 -> 0.2 | T67: 53 | U67: 46
D68: =IF(ISERROR(VLOOKUP(C68,'[1]Base Produits'!$A$8:$H$607,2,0)),"",VLOOKUP(C68,'[1]Base Produits'!$A$8:$H$607,2,0)) ->  | E68: =IF(ISERROR(VLOOKUP(C68,'[1]Base Produits'!$A$8:$H$607,3,0)),"",VLOOKUP(C68,'[1]Base Produits'!$A$8:$H$607,3,0)) ->  | K68: 0 | L68: 0 | M68: 0 | N68: 0 | O68: 1 | P68: =SUM($O$22:O68) -> 16 | Q68: ='[1]Base Produits'!A54 -> P0047 | R68: =HLOOKUP($H$2,'[1]Base Facturation'!$C$5:$ALN$611,T68,0) -> 5 | S68: ='[1]Base Produits'!D54 -> 0.2 | T68: 54 | U68: 47
D69: =IF(ISERROR(VLOOKUP(C69,'[1]Base Produits'!$A$8:$H$607,2,0)),"",VLOOKUP(C69,'[1]Base Produits'!$A$8:$H$607,2,0)) ->  | E69: =IF(ISERROR(VLOOKUP(C69,'[1]Base Produits'!$A$8:$H$607,3,0)),"",VLOOKUP(C69,'[1]Base Produits'!$A$8:$H$607,3,0)) ->  | K69: 0 | L69: 0 | M69: 0 | N69: 0 | O69: 1 | P69: =SUM($O$22:O69) -> 17 | Q69: ='[1]Base Produits'!A55 -> P0048 | R69: =HLOOKUP($H$2,'[1]Base Facturation'!$C$5:$ALN$611,T69,0) -> 5 | S69: ='[1]Base Produits'!D55 -> 0.2 | T69: 55 | U69: 48
D70: =IF(ISERROR(VLOOKUP(C70,'[1]Base Produits'!$A$8:$H$607,2,0)),"",VLOOKUP(C70,'[1]Base Produits'!$A$8:$H$607,2,0)) ->  | E70: =IF(ISERROR(VLOOKUP(C70,'[1]Base Produits'!$A$8:$H$607,3,0)),"",VLOOKUP(C70,'[1]Base Produits'!$A$8:$H$607,3,0)) ->  | K70: 0 | L70: 0 | M70: 0 | N70: 0 | O70: 1 | P70: =SUM($O$22:O70) -> 18 | Q70: ='[1]Base Produits'!A56 -> P0049 | R70: =HLOOKUP($H$2,'[1]Base Facturation'!$C$5:$ALN$611,T70,0) -> 5 | S70: ='[1]Base Produits'!D56 -> 0.2 | T70: 56 | U70: 49
D71: =IF(ISERROR(VLOOKUP(C71,'[1]Base Produits'!$A$8:$H$607,2,0)),"",VLOOKUP(C71,'[1]Base Produits'!$A$8:$H$607,2,0)) ->  | E71: =IF(ISERROR(VLOOKUP(C71,'[1]Base Produits'!$A$8:$H$607,3,0)),"",VLOOKUP(C71,'[1]Base Produits'!$A$8:$H$607,3,0)) ->  | K71: 0 | L71: 0 | M71: 0 | N71: 0 | O71: 1 | P71: =SUM($O$22:O71) -> 19 | Q71: ='[1]Base Produits'!A57 -> P0050 | R71: =HLOOKUP($H$2,'[1]Base Facturation'!$C$5:$ALN$611,T71,0) -> 5 | S71: ='[1]Base Produits'!D57 -> 0.2 | T71: 57 | U71: 50
D72: =IF(ISERROR(VLOOKUP(C72,'[1]Base Produits'!$A$8:$H$607,2,0)),"",VLOOKUP(C72,'[1]Base Produits'!$A$8:$H$607,2,0)) ->  | E72: =IF(ISERROR(VLOOKUP(C72,'[1]Base Produits'!$A$8:$H$607,3,0)),"",VLOOKUP(C72,'[1]Base Produits'!$A$8:$H$607,3,0)) ->  | K72: 0 | L72: 0 | M72: 0 | N72: 0 | O72: 1 | P72: =SUM($O$22:O72) -> 20 | Q72: ='[1]Base Produits'!A58 -> P0051 | R72: =HLOOKUP($H$2,'[1]Base Facturation'!$C$5:$ALN$611,T72,0) -> 5 | S72: ='[1]Base Produits'!D58 -> 0.2 | T72: 58 | U72: 51
D73: =IF(ISERROR(VLOOKUP(C73,'[1]Base Produits'!$A$8:$H$607,2,0)),"",VLOOKUP(C73,'[1]Base Produits'!$A$8:$H$607,2,0)) ->  | E73: =IF(ISERROR(VLOOKUP(C73,'[1]Base Produits'!$A$8:$H$607,3,0)),"",VLOOKUP(C73,'[1]Base Produits'!$A$8:$H$607,3,0)) ->  | K73: 0 | L73: 0 | M73: 0 | N73: 0 | O73: 1 | P73: =SUM($O$22:O73) -> 21 | Q73: ='[1]Base Produits'!A59 -> P0052 | R73: =HLOOKUP($H$2,'[1]Base Facturation'!$C$5:$ALN$611,T73,0) -> 5 | S73: ='[1]Base Produits'!D59 -> 0.2 | T73: 59 | U73: 52
D74: =IF(ISERROR(VLOOKUP(C74,'[1]Base Produits'!$A$8:$H$607,2,0)),"",VLOOKUP(C74,'[1]Base Produits'!$A$8:$H$607,2,0)) ->  | E74: =IF(ISERROR(VLOOKUP(C74,'[1]Base Produits'!$A$8:$H$607,3,0)),"",VLOOKUP(C74,'[1]Base Produits'!$A$8:$H$607,3,0)) ->  | K74: 0 | L74: 0 | M74: 0 | N74: 0 | O74: 1 | P74: =SUM($O$22:O74) -> 22 | Q74: ='[1]Base Produits'!A60 -> P0053 | R74: =HLOOKUP($H$2,'[1]Base Facturation'!$C$5:$ALN$611,T74,0) -> 5 | S74: ='[1]Base Produits'!D60 -> 0.2 | T74: 60 | U74: 53
D75: =IF(ISERROR(VLOOKUP(C75,'[1]Base Produits'!$A$8:$H$607,2,0)),"",VLOOKUP(C75,'[1]Base Produits'!$A$8:$H$607,2,0)) ->  | E75: =IF(ISERROR(VLOOKUP(C75,'[1]Base Produits'!$A$8:$H$607,3,0)),"",VLOOKUP(C75,'[1]Base Produits'!$A$8:$H$607,3,0)) ->  | K75: 0 | L75: 0 | M75: 0 | N75: 0 | O75: 1 | P75: =SUM($O$22:O75) -> 23 | Q75: ='[1]Base Produits'!A61 -> P0054 | R75: =HLOOKUP($H$2,'[1]Base Facturation'!$C$5:$ALN$611,T75,0) -> 5 | S75: ='[1]Base Produits'!D61 -> 0.2 | T75: 61 | U75: 54
D76: =IF(ISERROR(VLOOKUP(C76,'[1]Base Produits'!$A$8:$H$607,2,0)),"",VLOOKUP(C76,'[1]Base Produits'!$A$8:$H$607,2,0)) ->  | E76: =IF(ISERROR(VLOOKUP(C76,'[1]Base Produits'!$A$8:$H$607,3,0)),"",VLOOKUP(C76,'[1]Base Produits'!$A$8:$H$607,3,0)) ->  | K76: 0 | L76: 0 | M76: 0 | N76: 0 | O76: 1 | P76: =SUM($O$22:O76) -> 24 | Q76: ='[1]Base Produits'!A62 -> P0055 | R76: =HLOOKUP($H$2,'[1]Base Facturation'!$C$5:$ALN$611,T76,0) -> 5 | S76: ='[1]Base Produits'!D62 -> 0.2 | T76: 62 | U76: 55
D77: =IF(ISERROR(VLOOKUP(C77,'[1]Base Produits'!$A$8:$H$607,2,0)),"",VLOOKUP(C77,'[1]Base Produits'!$A$8:$H$607,2,0)) ->  | E77: =IF(ISERROR(VLOOKUP(C77,'[1]Base Produits'!$A$8:$H$607,3,0)),"",VLOOKUP(C77,'[1]Base Produits'!$A$8:$H$607,3,0)) ->  | K77: 0 | L77: 0 | M77: 0 | N77: 0 | O77: 1 | P77: =SUM($O$22:O77) -> 25 | Q77: ='[1]Base Produits'!A63 -> P0056 | R77: =HLOOKUP($H$2,'[1]Base Facturation'!$C$5:$ALN$611,T77,0) -> 5 | S77: ='[1]Base Produits'!D63 -> 0.2 | T77: 63 | U77: 56
D78: =IF(ISERROR(VLOOKUP(C78,'[1]Base Produits'!$A$8:$H$607,2,0)),"",VLOOKUP(C78,'[1]Base Produits'!$A$8:$H$607,2,0)) ->  | E78: =IF(ISERROR(VLOOKUP(C78,'[1]Base Produits'!$A$8:$H$607,3,0)),"",VLOOKUP(C78,'[1]Base Produits'!$A$8:$H$607,3,0)) ->  | K78: 0 | L78: 0 | M78: 0 | N78: 0 | O78: 1 | P78: =SUM($O$22:O78) -> 26 | Q78: ='[1]Base Produits'!A64 -> P0057 | R78: =HLOOKUP($H$2,'[1]Base Facturation'!$C$5:$ALN$611,T78,0) -> 5 | S78: ='[1]Base Produits'!D64 -> 0.2 | T78: 64 | U78: 57
D79: =IF(ISERROR(VLOOKUP(C79,'[1]Base Produits'!$A$8:$H$607,2,0)),"",VLOOKUP(C79,'[1]Base Produits'!$A$8:$H$607,2,0)) ->  | E79: =IF(ISERROR(VLOOKUP(C79,'[1]Base Produits'!$A$8:$H$607,3,0)),"",VLOOKUP(C79,'[1]Base Produits'!$A$8:$H$607,3,0)) ->  | K79: 0 | L79: 0 | M79: 0 | N79: 0 | O79: 1 | P79: =SUM($O$22:O79) -> 27 | Q79: ='[1]Base Produits'!A65 -> P0058 | R79: =HLOOKUP($H$2,'[1]Base Facturation'!$C$5:$ALN$611,T79,0) -> 5 | S79: ='[1]Base Produits'!D65 -> 0.2 | T79: 65 | U79: 58
D80: =IF(ISERROR(VLOOKUP(C80,'[1]Base Produits'!$A$8:$H$607,2,0)),"",VLOOKUP(C80,'[1]Base Produits'!$A$8:$H$607,2,0)) ->  | E80: =IF(ISERROR(VLOOKUP(C80,'[1]Base Produits'!$A$8:$H$607,3,0)),"",VLOOKUP(C80,'[1]Base Produits'!$A$8:$H$607,3,0)) ->  | K80: 0 | L80: 0 | M80: 0 | N80: 0 | O80: 1 | P80: =SUM($O$22:O80) -> 28 | Q80: ='[1]Base Produits'!A66 -> P0059 | R80: =HLOOKUP($H$2,'[1]Base Facturation'!$C$5:$ALN$611,T80,0) -> 5 | S80: ='[1]Base Produits'!D66 -> 0.2 | T80: 66 | U80: 59
D81: =IF(ISERROR(VLOOKUP(C81,'[1]Base Produits'!$A$8:$H$607,2,0)),"",VLOOKUP(C81,'[1]Base Produits'!$A$8:$H$607,2,0)) ->  | E81: =IF(ISERROR(VLOOKUP(C81,'[1]Base Produits'!$A$8:$H$607,3,0)),"",VLOOKUP(C81,'[1]Base Produits'!$A$8:$H$607,3,0)) ->  | K81: 0 | L81: 0 | M81: 0 | N81: 0 | O81: 1 | P81: =SUM($O$22:O81) -> 29 | Q81: ='[1]Base Produits'!A67 -> P0060 | R81: =HLOOKUP($H$2,'[1]Base Facturation'!$C$5:$ALN$611,T81,0) -> 5 | S81: ='[1]Base Produits'!D67 -> 0.2 | T81: 67 | U81: 60
D82: =IF(ISERROR(VLOOKUP(C82,'[1]Base Produits'!$A$8:$H$607,2,0)),"",VLOOKUP(C82,'[1]Base Produits'!$A$8:$H$607,2,0)) ->  | E82: =IF(ISERROR(VLOOKUP(C82,'[1]Base Produits'!$A$8:$H$607,3,0)),"",VLOOKUP(C82,'[1]Base Produits'!$A$8:$H$607,3,0)) ->  | K82: 0 | L82: 0 | M82: 0 | N82: 0 | O82: 1 | P82: =SUM($O$22:O82) -> 30 | Q82: ='[1]Base Produits'!A68 -> P0061 | R82: =HLOOKUP($H$2,'[1]Base Facturation'!$C$5:$ALN$611,T82,0) -> 5 | S82: ='[1]Base Produits'!D68 -> 0.2 | T82: 68 | U82: 61
D83: =IF(ISERROR(VLOOKUP(C83,'[1]Base Produits'!$A$8:$H$607,2,0)),"",VLOOKUP(C83,'[1]Base Produits'!$A$8:$H$607,2,0)) ->  | E83: =IF(ISERROR(VLOOKUP(C83,'[1]Base Produits'!$A$8:$H$607,3,0)),"",VLOOKUP(C83,'[1]Base Produits'!$A$8:$H$607,3,0)) ->  | K83: 0 | L83: 0 | M83: 0 | N83: 0 | O83: 1 | P83: =SUM($O$22:O83) -> 31 | Q83: ='[1]Base Produits'!A69 -> P0062 | R83: =HLOOKUP($H$2,'[1]Base Facturation'!$C$5:$ALN$611,T83,0) -> 5 | S83: ='[1]Base Produits'!D69 -> 0.2 | T83: 69 | U83: 62
D84: =IF(ISERROR(VLOOKUP(C84,'[1]Base Produits'!$A$8:$H$607,2,0)),"",VLOOKUP(C84,'[1]Base Produits'!$A$8:$H$607,2,0)) ->  | E84: =IF(ISERROR(VLOOKUP(C84,'[1]Base Produits'!$A$8:$H$607,3,0)),"",VLOOKUP(C84,'[1]Base Produits'!$A$8:$H$607,3,0)) ->  | K84: 0 | L84: 0 | M84: 0 | N84: 0 | O84: 1 | P84: =SUM($O$22:O84) -> 32 | Q84: ='[1]Base Produits'!A70 -> P0063 | R84: =HLOOKUP($H$2,'[1]Base Facturation'!$C$5:$ALN$611,T84,0) -> 5 | S84: ='[1]Base Produits'!D70 -> 0.2 | T84: 70 | U84: 63
D85: =IF(ISERROR(VLOOKUP(C85,'[1]Base Produits'!$A$8:$H$607,2,0)),"",VLOOKUP(C85,'[1]Base Produits'!$A$8:$H$607,2,0)) ->  | E85: =IF(ISERROR(VLOOKUP(C85,'[1]Base Produits'!$A$8:$H$607,3,0)),"",VLOOKUP(C85,'[1]Base Produits'!$A$8:$H$607,3,0)) ->  | K85: 0 | L85: 0 | M85: 0 | N85: 0 | O85: 1 | P85: =SUM($O$22:O85) -> 33 | Q85: ='[1]Base Produits'!A71 -> P0064 | R85: =HLOOKUP($H$2,'[1]Base Facturation'!$C$5:$ALN$611,T85,0) -> 5 | S85: ='[1]Base Produits'!D71 -> 0.2 | T85: 71 | U85: 64
D86: =IF(ISERROR(VLOOKUP(C86,'[1]Base Produits'!$A$8:$H$607,2,0)),"",VLOOKUP(C86,'[1]Base Produits'!$A$8:$H$607,2,0)) ->  | E86: =IF(ISERROR(VLOOKUP(C86,'[1]Base Produits'!$A$8:$H$607,3,0)),"",VLOOKUP(C86,'[1]Base Produits'!$A$8:$H$607,3,0)) ->  | K86: 0 | L86: 0 | M86: 0 | N86: 0 | O86: =IF(R86>0,1,"") -> 1 | P86: =SUM($O$22:O86) -> 34 | Q86: ='[1]Base Produits'!A72 -> P0065 | R86: =HLOOKUP($H$2,'[1]Base Facturation'!$C$5:$ALN$611,T86,0) -> 5 | S86: ='[1]Base Produits'!D72 -> 0.2 | T86: 72 | U86: 65
C87: =IF(ISERROR(VLOOKUP($U87,$P$22:$T$621,2,0)),"",VLOOKUP($U87,$P$22:$T$621,2,0)) ->  | D87: =IF(ISERROR(VLOOKUP(C87,'[1]Base Produits'!$A$8:$H$607,2,0)),"",VLOOKUP(C87,'[1]Base Produits'!$A$8:$H$607,2,0)) ->  | E87: =IF(ISERROR(VLOOKUP(C87,'[1]Base Produits'!$A$8:$H$607,3,0)),"",VLOOKUP(C87,'[1]Base Produits'!$A$8:$H$607,3,0)) ->  | F87: =IF(ISERROR(VLOOKUP($U87,$P$22:$T$621,3,0)),"",VLOOKUP($U87,$P$22:$T$621,3,0)) ->  | G87: =IF(ISERROR(E87*F87),"",E87*F87) ->  | H87: =IF(ISERROR(VLOOKUP($U87,$P$22:$T$621,4,0)),"",VLOOKUP($U87,$P$22:$T$621,4,0)) ->  | K87: 0 | L87: 0 | M87: 0 | N87: 0 | O87: 1 | P87: =SUM($O$22:O87) -> 35 | Q87: ='[1]Base Produits'!A73 -> P0066 | R87: =HLOOKUP($H$2,'[1]Base Facturation'!$C$5:$ALN$611,T87,0) -> 5 | S87: ='[1]Base Produits'!D73 -> 0.2 | T87: 73 | U87: 66
D88: =IF(ISERROR(VLOOKUP(C88,'[1]Base Produits'!$A$8:$H$607,2,0)),"",VLOOKUP(C88,'[1]Base Produits'!$A$8:$H$607,2,0)) ->  | E88: =IF(ISERROR(VLOOKUP(C88,'[1]Base Produits'!$A$8:$H$607,3,0)),"",VLOOKUP(C88,'[1]Base Produits'!$A$8:$H$607,3,0)) ->  | K88: =IF($H88=K$19,$H88*$G88,0) -> 0 | L88: 0 | M88: 0 | N88: =IF(ISERROR(G88*H88),0,G88*H88) -> 0 | O88: 1 | P88: =SUM($O$22:O88) -> 36 | Q88: ='[1]Base Produits'!A74 -> P0067 | R88: =HLOOKUP($H$2,'[1]Base Facturation'!$C$5:$ALN$611,T88,0) -> 5 | S88: ='[1]Base Produits'!D74 -> 0.2 | T88: 74 | U88: 67
D89: =IF(ISERROR(VLOOKUP(C89,'[1]Base Produits'!$A$8:$H$607,2,0)),"",VLOOKUP(C89,'[1]Base Produits'!$A$8:$H$607,2,0)) ->  | E89: =IF(ISERROR(VLOOKUP(C89,'[1]Base Produits'!$A$8:$H$607,3,0)),"",VLOOKUP(C89,'[1]Base Produits'!$A$8:$H$607,3,0)) ->  | K89: 0 | L89: 0 | M89: 0 | N89: 0 | O89: 1 | P89: =SUM($O$22:O89) -> 37 | Q89: ='[1]Base Produits'!A75 -> P0068 | R89: =HLOOKUP($H$2,'[1]Base Facturation'!$C$5:$ALN$611,T89,0) -> 5 | S89: ='[1]Base Produits'!D75 -> 0.2 | T89: 75 | U89: 68
D90: =IF(ISERROR(VLOOKUP(C90,'[1]Base Produits'!$A$8:$H$607,2,0)),"",VLOOKUP(C90,'[1]Base Produits'!$A$8:$H$607,2,0)) ->  | E90: =IF(ISERROR(VLOOKUP(C90,'[1]Base Produits'!$A$8:$H$607,3,0)),"",VLOOKUP(C90,'[1]Base Produits'!$A$8:$H$607,3,0)) ->  | K90: 0 | L90: 0 | M90: 0 | N90: 0 | P90: =SUM($O$22:O90) -> 37 | Q90: ='[1]Base Produits'!A76 -> P0069 | R90: =HLOOKUP($H$2,'[1]Base Facturation'!$C$5:$ALN$611,T90,0) -> 0 | S90: ='[1]Base Produits'!D76 -> 0 | T90: 76 | U90: 69
D91: =IF(ISERROR(VLOOKUP(C91,'[1]Base Produits'!$A$8:$H$607,2,0)),"",VLOOKUP(C91,'[1]Base Produits'!$A$8:$H$607,2,0)) ->  | E91: =IF(ISERROR(VLOOKUP(C91,'[1]Base Produits'!$A$8:$H$607,3,0)),"",VLOOKUP(C91,'[1]Base Produits'!$A$8:$H$607,3,0)) ->  | K91: 0 | L91: 0 | M91: 0 | N91: 0 | P91: =SUM($O$22:O91) -> 37 | Q91: ='[1]Base Produits'!A77 -> P0070 | R91: =HLOOKUP($H$2,'[1]Base Facturation'!$C$5:$ALN$611,T91,0) -> 0 | S91: ='[1]Base Produits'!D77 -> 0 | T91: 77 | U91: 70
D92: =IF(ISERROR(VLOOKUP(C92,'[1]Base Produits'!$A$8:$H$607,2,0)),"",VLOOKUP(C92,'[1]Base Produits'!$A$8:$H$607,2,0)) ->  | E92: =IF(ISERROR(VLOOKUP(C92,'[1]Base Produits'!$A$8:$H$607,3,0)),"",VLOOKUP(C92,'[1]Base Produits'!$A$8:$H$607,3,0)) ->  | K92: 0 | L92: 0 | M92: 0 | N92: 0 | P92: =SUM($O$22:O92) -> 37 | Q92: ='[1]Base Produits'!A78 -> P0071 | R92: =HLOOKUP($H$2,'[1]Base Facturation'!$C$5:$ALN$611,T92,0) -> 0 | S92: ='[1]Base Produits'!D78 -> 0 | T92: 78 | U92: 71
D93: =IF(ISERROR(VLOOKUP(C93,'[1]Base Produits'!$A$8:$H$607,2,0)),"",VLOOKUP(C93,'[1]Base Produits'!$A$8:$H$607,2,0)) ->  | E93: =IF(ISERROR(VLOOKUP(C93,'[1]Base Produits'!$A$8:$H$607,3,0)),"",VLOOKUP(C93,'[1]Base Produits'!$A$8:$H$607,3,0)) ->  | K93: 0 | L93: 0 | M93: 0 | N93: 0 | P93: =SUM($O$22:O93) -> 37 | Q93: ='[1]Base Produits'!A79 -> P0072 | R93: =HLOOKUP($H$2,'[1]Base Facturation'!$C$5:$ALN$611,T93,0) -> 0 | S93: ='[1]Base Produits'!D79 -> 0 | T93: 79 | U93: 72
D94: =IF(ISERROR(VLOOKUP(C94,'[1]Base Produits'!$A$8:$H$607,2,0)),"",VLOOKUP(C94,'[1]Base Produits'!$A$8:$H$607,2,0)) ->  | E94: =IF(ISERROR(VLOOKUP(C94,'[1]Base Produits'!$A$8:$H$607,3,0)),"",VLOOKUP(C94,'[1]Base Produits'!$A$8:$H$607,3,0)) ->  | K94: 0 | L94: 0 | M94: 0 | N94: 0 | P94: =SUM($O$22:O94) -> 37 | Q94: ='[1]Base Produits'!A80 -> P0073 | R94: =HLOOKUP($H$2,'[1]Base Facturation'!$C$5:$ALN$611,T94,0) -> 0 | S94: ='[1]Base Produits'!D80 -> 0 | T94: 80 | U94: 73
D95: =IF(ISERROR(VLOOKUP(C95,'[1]Base Produits'!$A$8:$H$607,2,0)),"",VLOOKUP(C95,'[1]Base Produits'!$A$8:$H$607,2,0)) ->  | E95: =IF(ISERROR(VLOOKUP(C95,'[1]Base Produits'!$A$8:$H$607,3,0)),"",VLOOKUP(C95,'[1]Base Produits'!$A$8:$H$607,3,0)) ->  | K95: 0 | L95: 0 | M95: 0 | N95: 0 | P95: =SUM($O$22:O95) -> 37 | Q95: ='[1]Base Produits'!A81 -> P0074 | R95: =HLOOKUP($H$2,'[1]Base Facturation'!$C$5:$ALN$611,T95,0) -> 0 | S95: ='[1]Base Produits'!D81 -> 0 | T95: 81 | U95: 74
D96: =IF(ISERROR(VLOOKUP(C96,'[1]Base Produits'!$A$8:$H$607,2,0)),"",VLOOKUP(C96,'[1]Base Produits'!$A$8:$H$607,2,0)) ->  | E96: =IF(ISERROR(VLOOKUP(C96,'[1]Base Produits'!$A$8:$H$607,3,0)),"",VLOOKUP(C96,'[1]Base Produits'!$A$8:$H$607,3,0)) ->  | K96: 0 | L96: 0 | M96: 0 | N96: 0 | P96: =SUM($O$22:O96) -> 37 | Q96: ='[1]Base Produits'!A82 -> P0075 | R96: =HLOOKUP($H$2,'[1]Base Facturation'!$C$5:$ALN$611,T96,0) -> 0 | S96: ='[1]Base Produits'!D82 -> 0 | T96: 82 | U96: 75
D97: =IF(ISERROR(VLOOKUP(C97,'[1]Base Produits'!$A$8:$H$607,2,0)),"",VLOOKUP(C97,'[1]Base Produits'!$A$8:$H$607,2,0)) ->  | E97: =IF(ISERROR(VLOOKUP(C97,'[1]Base Produits'!$A$8:$H$607,3,0)),"",VLOOKUP(C97,'[1]Base Produits'!$A$8:$H$607,3,0)) ->  | K97: 0 | L97: 0 | M97: 0 | N97: 0 | P97: =SUM($O$22:O97) -> 37 | Q97: ='[1]Base Produits'!A83 -> P0076 | R97: =HLOOKUP($H$2,'[1]Base Facturation'!$C$5:$ALN$611,T97,0) -> 0 | S97: ='[1]Base Produits'!D83 -> 0 | T97: 83 | U97: 76
D98: =IF(ISERROR(VLOOKUP(C98,'[1]Base Produits'!$A$8:$H$607,2,0)),"",VLOOKUP(C98,'[1]Base Produits'!$A$8:$H$607,2,0)) ->  | E98: =IF(ISERROR(VLOOKUP(C98,'[1]Base Produits'!$A$8:$H$607,3,0)),"",VLOOKUP(C98,'[1]Base Produits'!$A$8:$H$607,3,0)) ->  | K98: 0 | L98: 0 | M98: 0 | N98: 0 | P98: =SUM($O$22:O98) -> 37 | Q98: ='[1]Base Produits'!A84 -> P0077 | R98: =HLOOKUP($H$2,'[1]Base Facturation'!$C$5:$ALN$611,T98,0) -> 0 | S98: ='[1]Base Produits'!D84 -> 0 | T98: 84 | U98: 77
D99: =IF(ISERROR(VLOOKUP(C99,'[1]Base Produits'!$A$8:$H$607,2,0)),"",VLOOKUP(C99,'[1]Base Produits'!$A$8:$H$607,2,0)) ->  | E99: =IF(ISERROR(VLOOKUP(C99,'[1]Base Produits'!$A$8:$H$607,3,0)),"",VLOOKUP(C99,'[1]Base Produits'!$A$8:$H$607,3,0)) ->  | K99: 0 | L99: 0 | M99: 0 | N99: 0 | P99: =SUM($O$22:O99) -> 37 | Q99: ='[1]Base Produits'!A85 -> P0078 | R99: =HLOOKUP($H$2,'[1]Base Facturation'!$C$5:$ALN$611,T99,0) -> 0 | S99: ='[1]Base Produits'!D85 -> 0 | T99: 85 | U99: 78
D100: =IF(ISERROR(VLOOKUP(C100,'[1]Base Produits'!$A$8:$H$607,2,0)),"",VLOOKUP(C100,'[1]Base Produits'!$A$8:$H$607,2,0)) ->  | E100: =IF(ISERROR(VLOOKUP(C100,'[1]Base Produits'!$A$8:$H$607,3,0)),"",VLOOKUP(C100,'[1]Base Produits'!$A$8:$H$607,3,0)) ->  | K100: 0 | L100: 0 | M100: 0 | N100: 0 | P100: =SUM($O$22:O100) -> 37 | Q100: ='[1]Base Produits'!A86 -> P0079 | R100: =HLOOKUP($H$2,'[1]Base Facturation'!$C$5:$ALN$611,T100,0) -> 0 | S100: ='[1]Base Produits'!D86 -> 0 | T100: 86 | U100: 79
D101: =IF(ISERROR(VLOOKUP(C101,'[1]Base Produits'!$A$8:$H$607,2,0)),"",VLOOKUP(C101,'[1]Base Produits'!$A$8:$H$607,2,0)) ->  | E101: =IF(ISERROR(VLOOKUP(C101,'[1]Base Produits'!$A$8:$H$607,3,0)),"",VLOOKUP(C101,'[1]Base Produits'!$A$8:$H$607,3,0)) ->  | K101: 0 | L101: 0 | M101: 0 | N101: 0 | P101: =SUM($O$22:O101) -> 37 | Q101: ='[1]Base Produits'!A87 -> P0080 | R101: =HLOOKUP($H$2,'[1]Base Facturation'!$C$5:$ALN$611,T101,0) -> 0 | S101: ='[1]Base Produits'!D87 -> 0 | T101: 87 | U101: 80
D102: =IF(ISERROR(VLOOKUP(C102,'[1]Base Produits'!$A$8:$H$607,2,0)),"",VLOOKUP(C102,'[1]Base Produits'!$A$8:$H$607,2,0)) ->  | E102: =IF(ISERROR(VLOOKUP(C102,'[1]Base Produits'!$A$8:$H$607,3,0)),"",VLOOKUP(C102,'[1]Base Produits'!$A$8:$H$607,3,0)) ->  | K102: 0 | L102: 0 | M102: 0 | N102: 0 | P102: =SUM($O$22:O102) -> 37 | Q102: ='[1]Base Produits'!A88 -> P0081 | R102: =HLOOKUP($H$2,'[1]Base Facturation'!$C$5:$ALN$611,T102,0) -> 0 | S102: ='[1]Base Produits'!D88 -> 0 | T102: 88 | U102: 81
D103: =IF(ISERROR(VLOOKUP(C103,'[1]Base Produits'!$A$8:$H$607,2,0)),"",VLOOKUP(C103,'[1]Base Produits'!$A$8:$H$607,2,0)) ->  | E103: =IF(ISERROR(VLOOKUP(C103,'[1]Base Produits'!$A$8:$H$607,3,0)),"",VLOOKUP(C103,'[1]Base Produits'!$A$8:$H$607,3,0)) ->  | K103: 0 | L103: 0 | M103: 0 | N103: 0 | P103: =SUM($O$22:O103) -> 37 | Q103: ='[1]Base Produits'!A89 -> P0082 | R103: =HLOOKUP($H$2,'[1]Base Facturation'!$C$5:$ALN$611,T103,0) -> 0 | S103: ='[1]Base Produits'!D89 -> 0 | T103: 89 | U103: 82
D104: =IF(ISERROR(VLOOKUP(C104,'[1]Base Produits'!$A$8:$H$607,2,0)),"",VLOOKUP(C104,'[1]Base Produits'!$A$8:$H$607,2,0)) ->  | E104: =IF(ISERROR(VLOOKUP(C104,'[1]Base Produits'!$A$8:$H$607,3,0)),"",VLOOKUP(C104,'[1]Base Produits'!$A$8:$H$607,3,0)) ->  | K104: 0 | L104: 0 | M104: 0 | N104: 0 | P104: =SUM($O$22:O104) -> 37 | Q104: ='[1]Base Produits'!A90 -> P0083 | R104: =HLOOKUP($H$2,'[1]Base Facturation'!$C$5:$ALN$611,T104,0) -> 0 | S104: ='[1]Base Produits'!D90 -> 0 | T104: 90 | U104: 83
D105: =IF(ISERROR(VLOOKUP(C105,'[1]Base Produits'!$A$8:$H$607,2,0)),"",VLOOKUP(C105,'[1]Base Produits'!$A$8:$H$607,2,0)) ->  | E105: =IF(ISERROR(VLOOKUP(C105,'[1]Base Produits'!$A$8:$H$607,3,0)),"",VLOOKUP(C105,'[1]Base Produits'!$A$8:$H$607,3,0)) ->  | K105: 0 | L105: 0 | M105: 0 | N105: 0 | P105: =SUM($O$22:O105) -> 37 | Q105: ='[1]Base Produits'!A91 -> P0084 | R105: =HLOOKUP($H$2,'[1]Base Facturation'!$C$5:$ALN$611,T105,0) -> 0 | S105: ='[1]Base Produits'!D91 -> 0 | T105: 91 | U105: 84
D106: =IF(ISERROR(VLOOKUP(C106,'[1]Base Produits'!$A$8:$H$607,2,0)),"",VLOOKUP(C106,'[1]Base Produits'!$A$8:$H$607,2,0)) ->  | E106: =IF(ISERROR(VLOOKUP(C106,'[1]Base Produits'!$A$8:$H$607,3,0)),"",VLOOKUP(C106,'[1]Base Produits'!$A$8:$H$607,3,0)) ->  | K106: 0 | L106: 0 | M106: 0 | N106: 0 | P106: =SUM($O$22:O106) -> 37 | Q106: ='[1]Base Produits'!A92 -> P0085 | R106: =HLOOKUP($H$2,'[1]Base Facturation'!$C$5:$ALN$611,T106,0) -> 0 | S106: ='[1]Base Produits'!D92 -> 0 | T106: 92 | U106: 85
D107: =IF(ISERROR(VLOOKUP(C107,'[1]Base Produits'!$A$8:$H$607,2,0)),"",VLOOKUP(C107,'[1]Base Produits'!$A$8:$H$607,2,0)) ->  | E107: =IF(ISERROR(VLOOKUP(C107,'[1]Base Produits'!$A$8:$H$607,3,0)),"",VLOOKUP(C107,'[1]Base Produits'!$A$8:$H$607,3,0)) ->  | K107: 0 | L107: 0 | M107: 0 | N107: 0 | P107: =SUM($O$22:O107) -> 37 | Q107: ='[1]Base Produits'!A93 -> P0086 | R107: =HLOOKUP($H$2,'[1]Base Facturation'!$C$5:$ALN$611,T107,0) -> 0 | S107: ='[1]Base Produits'!D93 -> 0 | T107: 93 | U107: 86
D108: =IF(ISERROR(VLOOKUP(C108,'[1]Base Produits'!$A$8:$H$607,2,0)),"",VLOOKUP(C108,'[1]Base Produits'!$A$8:$H$607,2,0)) ->  | E108: =IF(ISERROR(VLOOKUP(C108,'[1]Base Produits'!$A$8:$H$607,3,0)),"",VLOOKUP(C108,'[1]Base Produits'!$A$8:$H$607,3,0)) ->  | K108: 0 | L108: 0 | M108: 0 | N108: 0 | P108: =SUM($O$22:O108) -> 37 | Q108: ='[1]Base Produits'!A94 -> P0087 | R108: =HLOOKUP($H$2,'[1]Base Facturation'!$C$5:$ALN$611,T108,0) -> 0 | S108: ='[1]Base Produits'!D94 -> 0 | T108: 94 | U108: 87
D109: =IF(ISERROR(VLOOKUP(C109,'[1]Base Produits'!$A$8:$H$607,2,0)),"",VLOOKUP(C109,'[1]Base Produits'!$A$8:$H$607,2,0)) ->  | E109: =IF(ISERROR(VLOOKUP(C109,'[1]Base Produits'!$A$8:$H$607,3,0)),"",VLOOKUP(C109,'[1]Base Produits'!$A$8:$H$607,3,0)) ->  | K109: 0 | L109: 0 | M109: 0 | N109: 0 | P109: =SUM($O$22:O109) -> 37 | Q109: ='[1]Base Produits'!A95 -> P0088 | R109: =HLOOKUP($H$2,'[1]Base Facturation'!$C$5:$ALN$611,T109,0) -> 0 | S109: ='[1]Base Produits'!D95 -> 0 | T109: 95 | U109: 88
D110: =IF(ISERROR(VLOOKUP(C110,'[1]Base Produits'!$A$8:$H$607,2,0)),"",VLOOKUP(C110,'[1]Base Produits'!$A$8:$H$607,2,0)) ->  | E110: =IF(ISERROR(VLOOKUP(C110,'[1]Base Produits'!$A$8:$H$607,3,0)),"",VLOOKUP(C110,'[1]Base Produits'!$A$8:$H$607,3,0)) ->  | K110: 0 | L110: 0 | M110: 0 | N110: 0 | P110: =SUM($O$22:O110) -> 37 | Q110: ='[1]Base Produits'!A96 -> P0089 | R110: =HLOOKUP($H$2,'[1]Base Facturation'!$C$5:$ALN$611,T110,0) -> 0 | S110: ='[1]Base Produits'!D96 -> 0 | T110: 96 | U110: 89
D111: =IF(ISERROR(VLOOKUP(C111,'[1]Base Produits'!$A$8:$H$607,2,0)),"",VLOOKUP(C111,'[1]Base Produits'!$A$8:$H$607,2,0)) ->  | E111: =IF(ISERROR(VLOOKUP(C111,'[1]Base Produits'!$A$8:$H$607,3,0)),"",VLOOKUP(C111,'[1]Base Produits'!$A$8:$H$607,3,0)) ->  | K111: 0 | L111: 0 | M111: 0 | N111: 0 | P111: =SUM($O$22:O111) -> 37 | Q111: ='[1]Base Produits'!A97 -> P0090 | R111: =HLOOKUP($H$2,'[1]Base Facturation'!$C$5:$ALN$611,T111,0) -> 0 | S111: ='[1]Base Produits'!D97 -> 0 | T111: 97 | U111: 90
D112: =IF(ISERROR(VLOOKUP(C112,'[1]Base Produits'!$A$8:$H$607,2,0)),"",VLOOKUP(C112,'[1]Base Produits'!$A$8:$H$607,2,0)) ->  | E112: =IF(ISERROR(VLOOKUP(C112,'[1]Base Produits'!$A$8:$H$607,3,0)),"",VLOOKUP(C112,'[1]Base Produits'!$A$8:$H$607,3,0)) ->  | K112: 0 | L112: 0 | M112: 0 | N112: 0 | P112: =SUM($O$22:O112) -> 37 | Q112: ='[1]Base Produits'!A98 -> P0091 | R112: =HLOOKUP($H$2,'[1]Base Facturation'!$C$5:$ALN$611,T112,0) -> 0 | S112: ='[1]Base Produits'!D98 -> 0 | T112: 98 | U112: 91
D113: =IF(ISERROR(VLOOKUP(C113,'[1]Base Produits'!$A$8:$H$607,2,0)),"",VLOOKUP(C113,'[1]Base Produits'!$A$8:$H$607,2,0)) ->  | E113: =IF(ISERROR(VLOOKUP(C113,'[1]Base Produits'!$A$8:$H$607,3,0)),"",VLOOKUP(C113,'[1]Base Produits'!$A$8:$H$607,3,0)) ->  | K113: 0 | L113: 0 | M113: 0 | N113: 0 | P113: =SUM($O$22:O113) -> 37 | Q113: ='[1]Base Produits'!A99 -> P0092 | R113: =HLOOKUP($H$2,'[1]Base Facturation'!$C$5:$ALN$611,T113,0) -> 0 | S113: ='[1]Base Produits'!D99 -> 0 | T113: 99 | U113: 92
D114: =IF(ISERROR(VLOOKUP(C114,'[1]Base Produits'!$A$8:$H$607,2,0)),"",VLOOKUP(C114,'[1]Base Produits'!$A$8:$H$607,2,0)) ->  | E114: =IF(ISERROR(VLOOKUP(C114,'[1]Base Produits'!$A$8:$H$607,3,0)),"",VLOOKUP(C114,'[1]Base Produits'!$A$8:$H$607,3,0)) ->  | K114: 0 | L114: 0 | M114: 0 | N114: 0 | P114: =SUM($O$22:O114) -> 37 | Q114: ='[1]Base Produits'!A100 -> P0093 | R114: =HLOOKUP($H$2,'[1]Base Facturation'!$C$5:$ALN$611,T114,0) -> 0 | S114: ='[1]Base Produits'!D100 -> 0 | T114: 100 | U114: 93
D115: =IF(ISERROR(VLOOKUP(C115,'[1]Base Produits'!$A$8:$H$607,2,0)),"",VLOOKUP(C115,'[1]Base Produits'!$A$8:$H$607,2,0)) ->  | E115: =IF(ISERROR(VLOOKUP(C115,'[1]Base Produits'!$A$8:$H$607,3,0)),"",VLOOKUP(C115,'[1]Base Produits'!$A$8:$H$607,3,0)) ->  | K115: 0 | L115: 0 | M115: 0 | N115: 0 | P115: =SUM($O$22:O115) -> 37 | Q115: ='[1]Base Produits'!A101 -> P0094 | R115: =HLOOKUP($H$2,'[1]Base Facturation'!$C$5:$ALN$611,T115,0) -> 0 | S115: ='[1]Base Produits'!D101 -> 0 | T115: 101 | U115: 94
D116: =IF(ISERROR(VLOOKUP(C116,'[1]Base Produits'!$A$8:$H$607,2,0)),"",VLOOKUP(C116,'[1]Base Produits'!$A$8:$H$607,2,0)) ->  | E116: =IF(ISERROR(VLOOKUP(C116,'[1]Base Produits'!$A$8:$H$607,3,0)),"",VLOOKUP(C116,'[1]Base Produits'!$A$8:$H$607,3,0)) ->  | K116: 0 | L116: 0 | M116: 0 | N116: 0 | P116: =SUM($O$22:O116) -> 37 | Q116: ='[1]Base Produits'!A102 -> P0095 | R116: =HLOOKUP($H$2,'[1]Base Facturation'!$C$5:$ALN$611,T116,0) -> 0 | S116: ='[1]Base Produits'!D102 -> 0 | T116: 102 | U116: 95
D117: =IF(ISERROR(VLOOKUP(C117,'[1]Base Produits'!$A$8:$H$607,2,0)),"",VLOOKUP(C117,'[1]Base Produits'!$A$8:$H$607,2,0)) ->  | E117: =IF(ISERROR(VLOOKUP(C117,'[1]Base Produits'!$A$8:$H$607,3,0)),"",VLOOKUP(C117,'[1]Base Produits'!$A$8:$H$607,3,0)) ->  | K117: 0 | L117: 0 | M117: 0 | N117: 0 | P117: =SUM($O$22:O117) -> 37 | Q117: ='[1]Base Produits'!A103 -> P0096 | R117: =HLOOKUP($H$2,'[1]Base Facturation'!$C$5:$ALN$611,T117,0) -> 0 | S117: ='[1]Base Produits'!D103 -> 0 | T117: 103 | U117: 96
D118: =IF(ISERROR(VLOOKUP(C118,'[1]Base Produits'!$A$8:$H$607,2,0)),"",VLOOKUP(C118,'[1]Base Produits'!$A$8:$H$607,2,0)) ->  | E118: =IF(ISERROR(VLOOKUP(C118,'[1]Base Produits'!$A$8:$H$607,3,0)),"",VLOOKUP(C118,'[1]Base Produits'!$A$8:$H$607,3,0)) ->  | K118: 0 | L118: 0 | M118: 0 | N118: 0 | P118: =SUM($O$22:O118) -> 37 | Q118: ='[1]Base Produits'!A104 -> P0097 | R118: =HLOOKUP($H$2,'[1]Base Facturation'!$C$5:$ALN$611,T118,0) -> 0 | S118: ='[1]Base Produits'!D104 -> 0 | T118: 104 | U118: 97
D119: =IF(ISERROR(VLOOKUP(C119,'[1]Base Produits'!$A$8:$H$607,2,0)),"",VLOOKUP(C119,'[1]Base Produits'!$A$8:$H$607,2,0)) ->  | E119: =IF(ISERROR(VLOOKUP(C119,'[1]Base Produits'!$A$8:$H$607,3,0)),"",VLOOKUP(C119,'[1]Base Produits'!$A$8:$H$607,3,0)) ->  | K119: 0 | L119: 0 | M119: 0 | N119: 0 | P119: =SUM($O$22:O119) -> 37 | Q119: ='[1]Base Produits'!A105 -> P0098 | R119: =HLOOKUP($H$2,'[1]Base Facturation'!$C$5:$ALN$611,T119,0) -> 0 | S119: ='[1]Base Produits'!D105 -> 0 | T119: 105 | U119: 98
D120: =IF(ISERROR(VLOOKUP(C120,'[1]Base Produits'!$A$8:$H$607,2,0)),"",VLOOKUP(C120,'[1]Base Produits'!$A$8:$H$607,2,0)) ->  | E120: =IF(ISERROR(VLOOKUP(C120,'[1]Base Produits'!$A$8:$H$607,3,0)),"",VLOOKUP(C120,'[1]Base Produits'!$A$8:$H$607,3,0)) ->  | K120: =IF($H120=K$19,$H120*$G120,0) -> 0 | L120: 0 | M120: 0 | N120: 0 | P120: =SUM($O$22:O120) -> 37 | Q120: ='[1]Base Produits'!A106 -> P0099 | R120: =HLOOKUP($H$2,'[1]Base Facturation'!$C$5:$ALN$611,T120,0) -> 0 | S120: ='[1]Base Produits'!D106 -> 0 | T120: 106 | U120: 99
D121: =IF(ISERROR(VLOOKUP(C121,'[1]Base Produits'!$A$8:$H$607,2,0)),"",VLOOKUP(C121,'[1]Base Produits'!$A$8:$H$607,2,0)) ->  | E121: =IF(ISERROR(VLOOKUP(C121,'[1]Base Produits'!$A$8:$H$607,3,0)),"",VLOOKUP(C121,'[1]Base Produits'!$A$8:$H$607,3,0)) ->  | K121: 0 | L121: 0 | M121: 0 | N121: 0 | P121: =SUM($O$22:O121) -> 37 | Q121: ='[1]Base Produits'!A107 -> P0100 | R121: =HLOOKUP($H$2,'[1]Base Facturation'!$C$5:$ALN$611,T121,0) -> 0 | S121: ='[1]Base Produits'!D107 -> 0 | T121: 107 | U121: 100
D122: =IF(ISERROR(VLOOKUP(C122,'[1]Base Produits'!$A$8:$H$607,2,0)),"",VLOOKUP(C122,'[1]Base Produits'!$A$8:$H$607,2,0)) ->  | E122: =IF(ISERROR(VLOOKUP(C122,'[1]Base Produits'!$A$8:$H$607,3,0)),"",VLOOKUP(C122,'[1]Base Produits'!$A$8:$H$607,3,0)) ->  | K122: 0 | L122: 0 | M122: 0 | N122: 0 | P122: =SUM($O$22:O122) -> 37 | Q122: ='[1]Base Produits'!A108 -> P0101 | R122: =HLOOKUP($H$2,'[1]Base Facturation'!$C$5:$ALN$611,T122,0) -> 0 | S122: ='[1]Base Produits'!D108 -> 0 | T122: 108 | U122: 101
D123: =IF(ISERROR(VLOOKUP(C123,'[1]Base Produits'!$A$8:$H$607,2,0)),"",VLOOKUP(C123,'[1]Base Produits'!$A$8:$H$607,2,0)) ->  | E123: =IF(ISERROR(VLOOKUP(C123,'[1]Base Produits'!$A$8:$H$607,3,0)),"",VLOOKUP(C123,'[1]Base Produits'!$A$8:$H$607,3,0)) ->  | K123: 0 | L123: 0 | M123: 0 | N123: 0 | P123: =SUM($O$22:O123) -> 37 | Q123: ='[1]Base Produits'!A109 -> P0102 | R123: =HLOOKUP($H$2,'[1]Base Facturation'!$C$5:$ALN$611,T123,0) -> 0 | S123: ='[1]Base Produits'!D109 -> 0 | T123: 109 | U123: 102
D124: =IF(ISERROR(VLOOKUP(C124,'[1]Base Produits'!$A$8:$H$607,2,0)),"",VLOOKUP(C124,'[1]Base Produits'!$A$8:$H$607,2,0)) ->  | E124: =IF(ISERROR(VLOOKUP(C124,'[1]Base Produits'!$A$8:$H$607,3,0)),"",VLOOKUP(C124,'[1]Base Produits'!$A$8:$H$607,3,0)) ->  | K124: 0 | L124: 0 | M124: 0 | N124: 0 | P124: =SUM($O$22:O124) -> 37 | Q124: ='[1]Base Produits'!A110 -> P0103 | R124: =HLOOKUP($H$2,'[1]Base Facturation'!$C$5:$ALN$611,T124,0) -> 0 | S124: ='[1]Base Produits'!D110 -> 0 | T124: 110 | U124: 103
D125: =IF(ISERROR(VLOOKUP(C125,'[1]Base Produits'!$A$8:$H$607,2,0)),"",VLOOKUP(C125,'[1]Base Produits'!$A$8:$H$607,2,0)) ->  | E125: =IF(ISERROR(VLOOKUP(C125,'[1]Base Produits'!$A$8:$H$607,3,0)),"",VLOOKUP(C125,'[1]Base Produits'!$A$8:$H$607,3,0)) ->  | K125: 0 | L125: 0 | M125: 0 | N125: 0 | P125: =SUM($O$22:O125) -> 37 | Q125: ='[1]Base Produits'!A111 -> P0104 | R125: =HLOOKUP($H$2,'[1]Base Facturation'!$C$5:$ALN$611,T125,0) -> 0 | S125: ='[1]Base Produits'!D111 -> 0 | T125: 111 | U125: 104
D126: =IF(ISERROR(VLOOKUP(C126,'[1]Base Produits'!$A$8:$H$607,2,0)),"",VLOOKUP(C126,'[1]Base Produits'!$A$8:$H$607,2,0)) ->  | E126: =IF(ISERROR(VLOOKUP(C126,'[1]Base Produits'!$A$8:$H$607,3,0)),"",VLOOKUP(C126,'[1]Base Produits'!$A$8:$H$607,3,0)) ->  | K126: 0 | L126: 0 | M126: 0 | N126: 0 | P126: =SUM($O$22:O126) -> 37 | Q126: ='[1]Base Produits'!A112 -> P0105 | R126: =HLOOKUP($H$2,'[1]Base Facturation'!$C$5:$ALN$611,T126,0) -> 0 | S126: ='[1]Base Produits'!D112 -> 0 | T126: 112 | U126: 105
D127: =IF(ISERROR(VLOOKUP(C127,'[1]Base Produits'!$A$8:$H$607,2,0)),"",VLOOKUP(C127,'[1]Base Produits'!$A$8:$H$607,2,0)) ->  | E127: =IF(ISERROR(VLOOKUP(C127,'[1]Base Produits'!$A$8:$H$607,3,0)),"",VLOOKUP(C127,'[1]Base Produits'!$A$8:$H$607,3,0)) ->  | K127: 0 | L127: 0 | M127: 0 | N127: 0 | P127: =SUM($O$22:O127) -> 37 | Q127: ='[1]Base Produits'!A113 -> P0106 | R127: =HLOOKUP($H$2,'[1]Base Facturation'!$C$5:$ALN$611,T127,0) -> 0 | S127: ='[1]Base Produits'!D113 -> 0 | T127: 113 | U127: 106
D128: =IF(ISERROR(VLOOKUP(C128,'[1]Base Produits'!$A$8:$H$607,2,0)),"",VLOOKUP(C128,'[1]Base Produits'!$A$8:$H$607,2,0)) ->  | E128: =IF(ISERROR(VLOOKUP(C128,'[1]Base Produits'!$A$8:$H$607,3,0)),"",VLOOKUP(C128,'[1]Base Produits'!$A$8:$H$607,3,0)) ->  | K128: 0 | L128: 0 | M128: 0 | N128: 0 | P128: =SUM($O$22:O128) -> 37 | Q128: ='[1]Base Produits'!A114 -> P0107 | R128: =HLOOKUP($H$2,'[1]Base Facturation'!$C$5:$ALN$611,T128,0) -> 0 | S128: ='[1]Base Produits'!D114 -> 0 | T128: 114 | U128: 107
D129: =IF(ISERROR(VLOOKUP(C129,'[1]Base Produits'!$A$8:$H$607,2,0)),"",VLOOKUP(C129,'[1]Base Produits'!$A$8:$H$607,2,0)) ->  | E129: =IF(ISERROR(VLOOKUP(C129,'[1]Base Produits'!$A$8:$H$607,3,0)),"",VLOOKUP(C129,'[1]Base Produits'!$A$8:$H$607,3,0)) ->  | K129: 0 | L129: 0 | M129: 0 | N129: 0 | P129: =SUM($O$22:O129) -> 37 | Q129: ='[1]Base Produits'!A115 -> P0108 | R129: =HLOOKUP($H$2,'[1]Base Facturation'!$C$5:$ALN$611,T129,0) -> 0 | S129: ='[1]Base Produits'!D115 -> 0 | T129: 115 | U129: 108
D130: =IF(ISERROR(VLOOKUP(C130,'[1]Base Produits'!$A$8:$H$607,2,0)),"",VLOOKUP(C130,'[1]Base Produits'!$A$8:$H$607,2,0)) ->  | E130: =IF(ISERROR(VLOOKUP(C130,'[1]Base Produits'!$A$8:$H$607,3,0)),"",VLOOKUP(C130,'[1]Base Produits'!$A$8:$H$607,3,0)) ->  | K130: 0 | L130: 0 | M130: 0 | N130: 0 | P130: =SUM($O$22:O130) -> 37 | Q130: ='[1]Base Produits'!A116 -> P0109 | R130: =HLOOKUP($H$2,'[1]Base Facturation'!$C$5:$ALN$611,T130,0) -> 0 | S130: ='[1]Base Produits'!D116 -> 0 | T130: 116 | U130: 109
D131: =IF(ISERROR(VLOOKUP(C131,'[1]Base Produits'!$A$8:$H$607,2,0)),"",VLOOKUP(C131,'[1]Base Produits'!$A$8:$H$607,2,0)) ->  | E131: =IF(ISERROR(VLOOKUP(C131,'[1]Base Produits'!$A$8:$H$607,3,0)),"",VLOOKUP(C131,'[1]Base Produits'!$A$8:$H$607,3,0)) ->  | K131: 0 | L131: 0 | M131: 0 | N131: 0 | P131: =SUM($O$22:O131) -> 37 | Q131: ='[1]Base Produits'!A117 -> P0110 | R131: =HLOOKUP($H$2,'[1]Base Facturation'!$C$5:$ALN$611,T131,0) -> 0 | S131: ='[1]Base Produits'!D117 -> 0 | T131: 117 | U131: 110
D132: =IF(ISERROR(VLOOKUP(C132,'[1]Base Produits'!$A$8:$H$607,2,0)),"",VLOOKUP(C132,'[1]Base Produits'!$A$8:$H$607,2,0)) ->  | E132: =IF(ISERROR(VLOOKUP(C132,'[1]Base Produits'!$A$8:$H$607,3,0)),"",VLOOKUP(C132,'[1]Base Produits'!$A$8:$H$607,3,0)) ->  | K132: 0 | L132: 0 | M132: 0 | N132: 0 | P132: =SUM($O$22:O132) -> 37 | Q132: ='[1]Base Produits'!A118 -> P0111 | R132: =HLOOKUP($H$2,'[1]Base Facturation'!$C$5:$ALN$611,T132,0) -> 0 | S132: ='[1]Base Produits'!D118 -> 0 | T132: 118 | U132: 111
D133: =IF(ISERROR(VLOOKUP(C133,'[1]Base Produits'!$A$8:$H$607,2,0)),"",VLOOKUP(C133,'[1]Base Produits'!$A$8:$H$607,2,0)) ->  | E133: =IF(ISERROR(VLOOKUP(C133,'[1]Base Produits'!$A$8:$H$607,3,0)),"",VLOOKUP(C133,'[1]Base Produits'!$A$8:$H$607,3,0)) ->  | K133: 0 | L133: 0 | M133: 0 | N133: 0 | P133: =SUM($O$22:O133) -> 37 | Q133: ='[1]Base Produits'!A119 -> P0112 | R133: =HLOOKUP($H$2,'[1]Base Facturation'!$C$5:$ALN$611,T133,0) -> 0 | S133: ='[1]Base Produits'!D119 -> 0 | T133: 119 | U133: 112
D134: =IF(ISERROR(VLOOKUP(C134,'[1]Base Produits'!$A$8:$H$607,2,0)),"",VLOOKUP(C134,'[1]Base Produits'!$A$8:$H$607,2,0)) ->  | E134: =IF(ISERROR(VLOOKUP(C134,'[1]Base Produits'!$A$8:$H$607,3,0)),"",VLOOKUP(C134,'[1]Base Produits'!$A$8:$H$607,3,0)) ->  | K134: 0 | L134: 0 | M134: 0 | N134: 0 | P134: =SUM($O$22:O134) -> 37 | Q134: ='[1]Base Produits'!A120 -> P0113 | R134: =HLOOKUP($H$2,'[1]Base Facturation'!$C$5:$ALN$611,T134,0) -> 0 | S134: ='[1]Base Produits'!D120 -> 0 | T134: 120 | U134: 113
D135: =IF(ISERROR(VLOOKUP(C135,'[1]Base Produits'!$A$8:$H$607,2,0)),"",VLOOKUP(C135,'[1]Base Produits'!$A$8:$H$607,2,0)) ->  | E135: =IF(ISERROR(VLOOKUP(C135,'[1]Base Produits'!$A$8:$H$607,3,0)),"",VLOOKUP(C135,'[1]Base Produits'!$A$8:$H$607,3,0)) ->  | K135: 0 | L135: 0 | M135: 0 | N135: 0 | P135: =SUM($O$22:O135) -> 37 | Q135: ='[1]Base Produits'!A121 -> P0114 | R135: =HLOOKUP($H$2,'[1]Base Facturation'!$C$5:$ALN$611,T135,0) -> 0 | S135: ='[1]Base Produits'!D121 -> 0 | T135: 121 | U135: 114
D136: =IF(ISERROR(VLOOKUP(C136,'[1]Base Produits'!$A$8:$H$607,2,0)),"",VLOOKUP(C136,'[1]Base Produits'!$A$8:$H$607,2,0)) ->  | E136: =IF(ISERROR(VLOOKUP(C136,'[1]Base Produits'!$A$8:$H$607,3,0)),"",VLOOKUP(C136,'[1]Base Produits'!$A$8:$H$607,3,0)) ->  | K136: 0 | L136: 0 | M136: 0 | N136: 0 | P136: =SUM($O$22:O136) -> 37 | Q136: ='[1]Base Produits'!A122 -> P0115 | R136: =HLOOKUP($H$2,'[1]Base Facturation'!$C$5:$ALN$611,T136,0) -> 0 | S136: ='[1]Base Produits'!D122 -> 0 | T136: 122 | U136: 115
D137: =IF(ISERROR(VLOOKUP(C137,'[1]Base Produits'!$A$8:$H$607,2,0)),"",VLOOKUP(C137,'[1]Base Produits'!$A$8:$H$607,2,0)) ->  | E137: =IF(ISERROR(VLOOKUP(C137,'[1]Base Produits'!$A$8:$H$607,3,0)),"",VLOOKUP(C137,'[1]Base Produits'!$A$8:$H$607,3,0)) ->  | K137: 0 | L137: 0 | M137: 0 | N137: 0 | P137: =SUM($O$22:O137) -> 37 | Q137: ='[1]Base Produits'!A123 -> P0116 | R137: =HLOOKUP($H$2,'[1]Base Facturation'!$C$5:$ALN$611,T137,0) -> 0 | S137: ='[1]Base Produits'!D123 -> 0 | T137: 123 | U137: 116
D138: =IF(ISERROR(VLOOKUP(C138,'[1]Base Produits'!$A$8:$H$607,2,0)),"",VLOOKUP(C138,'[1]Base Produits'!$A$8:$H$607,2,0)) ->  | E138: =IF(ISERROR(VLOOKUP(C138,'[1]Base Produits'!$A$8:$H$607,3,0)),"",VLOOKUP(C138,'[1]Base Produits'!$A$8:$H$607,3,0)) ->  | K138: 0 | L138: 0 | M138: 0 | N138: 0 | P138: =SUM($O$22:O138) -> 37 | Q138: ='[1]Base Produits'!A124 -> P0117 | R138: =HLOOKUP($H$2,'[1]Base Facturation'!$C$5:$ALN$611,T138,0) -> 0 | S138: ='[1]Base Produits'!D124 -> 0 | T138: 124 | U138: 117
D139: =IF(ISERROR(VLOOKUP(C139,'[1]Base Produits'!$A$8:$H$607,2,0)),"",VLOOKUP(C139,'[1]Base Produits'!$A$8:$H$607,2,0)) ->  | E139: =IF(ISERROR(VLOOKUP(C139,'[1]Base Produits'!$A$8:$H$607,3,0)),"",VLOOKUP(C139,'[1]Base Produits'!$A$8:$H$607,3,0)) ->  | K139: 0 | L139: 0 | M139: 0 | N139: 0 | P139: =SUM($O$22:O139) -> 37 | Q139: ='[1]Base Produits'!A125 -> P0118 | R139: =HLOOKUP($H$2,'[1]Base Facturation'!$C$5:$ALN$611,T139,0) -> 0 | S139: ='[1]Base Produits'!D125 -> 0 | T139: 125 | U139: 118
D140: =IF(ISERROR(VLOOKUP(C140,'[1]Base Produits'!$A$8:$H$607,2,0)),"",VLOOKUP(C140,'[1]Base Produits'!$A$8:$H$607,2,0)) ->  | E140: =IF(ISERROR(VLOOKUP(C140,'[1]Base Produits'!$A$8:$H$607,3,0)),"",VLOOKUP(C140,'[1]Base Produits'!$A$8:$H$607,3,0)) ->  | K140: 0 | L140: 0 | M140: 0 | N140: 0 | P140: =SUM($O$22:O140) -> 37 | Q140: ='[1]Base Produits'!A126 -> P0119 | R140: =HLOOKUP($H$2,'[1]Base Facturation'!$C$5:$ALN$611,T140,0) -> 0 | S140: ='[1]Base Produits'!D126 -> 0 | T140: 126 | U140: 119
D141: =IF(ISERROR(VLOOKUP(C141,'[1]Base Produits'!$A$8:$H$607,2,0)),"",VLOOKUP(C141,'[1]Base Produits'!$A$8:$H$607,2,0)) ->  | E141: =IF(ISERROR(VLOOKUP(C141,'[1]Base Produits'!$A$8:$H$607,3,0)),"",VLOOKUP(C141,'[1]Base Produits'!$A$8:$H$607,3,0)) ->  | K141: 0 | L141: 0 | M141: 0 | N141: 0 | P141: =SUM($O$22:O141) -> 37 | Q141: ='[1]Base Produits'!A127 -> P0120 | R141: =HLOOKUP($H$2,'[1]Base Facturation'!$C$5:$ALN$611,T141,0) -> 0 | S141: ='[1]Base Produits'!D127 -> 0 | T141: 127 | U141: 120
D142: =IF(ISERROR(VLOOKUP(C142,'[1]Base Produits'!$A$8:$H$607,2,0)),"",VLOOKUP(C142,'[1]Base Produits'!$A$8:$H$607,2,0)) ->  | E142: =IF(ISERROR(VLOOKUP(C142,'[1]Base Produits'!$A$8:$H$607,3,0)),"",VLOOKUP(C142,'[1]Base Produits'!$A$8:$H$607,3,0)) ->  | K142: 0 | L142: 0 | M142: 0 | N142: 0 | P142: =SUM($O$22:O142) -> 37 | Q142: ='[1]Base Produits'!A128 -> P0121 | R142: =HLOOKUP($H$2,'[1]Base Facturation'!$C$5:$ALN$611,T142,0) -> 0 | S142: ='[1]Base Produits'!D128 -> 0 | T142: 128 | U142: 121
D143: =IF(ISERROR(VLOOKUP(C143,'[1]Base Produits'!$A$8:$H$607,2,0)),"",VLOOKUP(C143,'[1]Base Produits'!$A$8:$H$607,2,0)) ->  | E143: =IF(ISERROR(VLOOKUP(C143,'[1]Base Produits'!$A$8:$H$607,3,0)),"",VLOOKUP(C143,'[1]Base Produits'!$A$8:$H$607,3,0)) ->  | K143: 0 | L143: 0 | M143: 0 | N143: 0 | P143: =SUM($O$22:O143) -> 37 | Q143: ='[1]Base Produits'!A129 -> P0122 | R143: =HLOOKUP($H$2,'[1]Base Facturation'!$C$5:$ALN$611,T143,0) -> 0 | S143: ='[1]Base Produits'!D129 -> 0 | T143: 129 | U143: 122
D144: =IF(ISERROR(VLOOKUP(C144,'[1]Base Produits'!$A$8:$H$607,2,0)),"",VLOOKUP(C144,'[1]Base Produits'!$A$8:$H$607,2,0)) ->  | E144: =IF(ISERROR(VLOOKUP(C144,'[1]Base Produits'!$A$8:$H$607,3,0)),"",VLOOKUP(C144,'[1]Base Produits'!$A$8:$H$607,3,0)) ->  | K144: 0 | L144: 0 | M144: 0 | N144: 0 | P144: =SUM($O$22:O144) -> 37 | Q144: ='[1]Base Produits'!A130 -> P0123 | R144: =HLOOKUP($H$2,'[1]Base Facturation'!$C$5:$ALN$611,T144,0) -> 0 | S144: ='[1]Base Produits'!D130 -> 0 | T144: 130 | U144: 123
D145: =IF(ISERROR(VLOOKUP(C145,'[1]Base Produits'!$A$8:$H$607,2,0)),"",VLOOKUP(C145,'[1]Base Produits'!$A$8:$H$607,2,0)) ->  | E145: =IF(ISERROR(VLOOKUP(C145,'[1]Base Produits'!$A$8:$H$607,3,0)),"",VLOOKUP(C145,'[1]Base Produits'!$A$8:$H$607,3,0)) ->  | K145: 0 | L145: 0 | M145: 0 | N145: 0 | P145: =SUM($O$22:O145) -> 37 | Q145: ='[1]Base Produits'!A131 -> P0124 | R145: =HLOOKUP($H$2,'[1]Base Facturation'!$C$5:$ALN$611,T145,0) -> 0 | S145: ='[1]Base Produits'!D131 -> 0 | T145: 131 | U145: 124
D146: =IF(ISERROR(VLOOKUP(C146,'[1]Base Produits'!$A$8:$H$607,2,0)),"",VLOOKUP(C146,'[1]Base Produits'!$A$8:$H$607,2,0)) ->  | E146: =IF(ISERROR(VLOOKUP(C146,'[1]Base Produits'!$A$8:$H$607,3,0)),"",VLOOKUP(C146,'[1]Base Produits'!$A$8:$H$607,3,0)) ->  | K146: 0 | L146: 0 | M146: 0 | N146: 0 | P146: =SUM($O$22:O146) -> 37 | Q146: ='[1]Base Produits'!A132 -> P0125 | R146: =HLOOKUP($H$2,'[1]Base Facturation'!$C$5:$ALN$611,T146,0) -> 0 | S146: ='[1]Base Produits'!D132 -> 0 | T146: 132 | U146: 125
D147: =IF(ISERROR(VLOOKUP(C147,'[1]Base Produits'!$A$8:$H$607,2,0)),"",VLOOKUP(C147,'[1]Base Produits'!$A$8:$H$607,2,0)) ->  | E147: =IF(ISERROR(VLOOKUP(C147,'[1]Base Produits'!$A$8:$H$607,3,0)),"",VLOOKUP(C147,'[1]Base Produits'!$A$8:$H$607,3,0)) ->  | K147: 0 | L147: 0 | M147: 0 | N147: 0 | P147: =SUM($O$22:O147) -> 37 | Q147: ='[1]Base Produits'!A133 -> P0126 | R147: =HLOOKUP($H$2,'[1]Base Facturation'!$C$5:$ALN$611,T147,0) -> 0 | S147: ='[1]Base Produits'!D133 -> 0 | T147: 133 | U147: 126
D148: =IF(ISERROR(VLOOKUP(C148,'[1]Base Produits'!$A$8:$H$607,2,0)),"",VLOOKUP(C148,'[1]Base Produits'!$A$8:$H$607,2,0)) ->  | E148: =IF(ISERROR(VLOOKUP(C148,'[1]Base Produits'!$A$8:$H$607,3,0)),"",VLOOKUP(C148,'[1]Base Produits'!$A$8:$H$607,3,0)) ->  | K148: 0 | L148: 0 | M148: 0 | N148: 0 | P148: =SUM($O$22:O148) -> 37 | Q148: ='[1]Base Produits'!A134 -> P0127 | R148: =HLOOKUP($H$2,'[1]Base Facturation'!$C$5:$ALN$611,T148,0) -> 0 | S148: ='[1]Base Produits'!D134 -> 0 | T148: 134 | U148: 127
D149: =IF(ISERROR(VLOOKUP(C149,'[1]Base Produits'!$A$8:$H$607,2,0)),"",VLOOKUP(C149,'[1]Base Produits'!$A$8:$H$607,2,0)) ->  | E149: =IF(ISERROR(VLOOKUP(C149,'[1]Base Produits'!$A$8:$H$607,3,0)),"",VLOOKUP(C149,'[1]Base Produits'!$A$8:$H$607,3,0)) ->  | K149: 0 | L149: 0 | M149: 0 | N149: 0 | P149: =SUM($O$22:O149) -> 37 | Q149: ='[1]Base Produits'!A135 -> P0128 | R149: =HLOOKUP($H$2,'[1]Base Facturation'!$C$5:$ALN$611,T149,0) -> 0 | S149: ='[1]Base Produits'!D135 -> 0 | T149: 135 | U149: 128
D150: =IF(ISERROR(VLOOKUP(C150,'[1]Base Produits'!$A$8:$H$607,2,0)),"",VLOOKUP(C150,'[1]Base Produits'!$A$8:$H$607,2,0)) ->  | E150: =IF(ISERROR(VLOOKUP(C150,'[1]Base Produits'!$A$8:$H$607,3,0)),"",VLOOKUP(C150,'[1]Base Produits'!$A$8:$H$607,3,0)) ->  | K150: 0 | L150: 0 | M150: 0 | N150: 0 | O150: =IF(R150>0,1,"") ->  | P150: =SUM($O$22:O150) -> 37 | Q150: ='[1]Base Produits'!A136 -> P0129 | R150: =HLOOKUP($H$2,'[1]Base Facturation'!$C$5:$ALN$611,T150,0) -> 0 | S150: ='[1]Base Produits'!D136 -> 0 | T150: 136 | U150: 129
C151: =IF(ISERROR(VLOOKUP($U151,$P$22:$T$621,2,0)),"",VLOOKUP($U151,$P$22:$T$621,2,0)) ->  | D151: =IF(ISERROR(VLOOKUP(C151,'[1]Base Produits'!$A$8:$H$607,2,0)),"",VLOOKUP(C151,'[1]Base Produits'!$A$8:$H$607,2,0)) ->  | E151: =IF(ISERROR(VLOOKUP(C151,'[1]Base Produits'!$A$8:$H$607,3,0)),"",VLOOKUP(C151,'[1]Base Produits'!$A$8:$H$607,3,0)) ->  | F151: =IF(ISERROR(VLOOKUP($U151,$P$22:$T$621,3,0)),"",VLOOKUP($U151,$P$22:$T$621,3,0)) ->  | G151: =IF(ISERROR(E151*F151),"",E151*F151) ->  | H151: =IF(ISERROR(VLOOKUP($U151,$P$22:$T$621,4,0)),"",VLOOKUP($U151,$P$22:$T$621,4,0)) ->  | K151: 0 | L151: 0 | M151: 0 | N151: 0 | P151: =SUM($O$22:O151) -> 37 | Q151: ='[1]Base Produits'!A137 -> P0130 | R151: =HLOOKUP($H$2,'[1]Base Facturation'!$C$5:$ALN$611,T151,0) -> 0 | S151: ='[1]Base Produits'!D137 -> 0 | T151: 137 | U151: 130
D152: =IF(ISERROR(VLOOKUP(C152,'[1]Base Produits'!$A$8:$H$607,2,0)),"",VLOOKUP(C152,'[1]Base Produits'!$A$8:$H$607,2,0)) ->  | E152: =IF(ISERROR(VLOOKUP(C152,'[1]Base Produits'!$A$8:$H$607,3,0)),"",VLOOKUP(C152,'[1]Base Produits'!$A$8:$H$607,3,0)) ->  | K152: =IF($H152=K$19,$H152*$G152,0) -> 0 | L152: 0 | M152: 0 | N152: =IF(ISERROR(G152*H152),0,G152*H152) -> 0 | P152: =SUM($O$22:O152) -> 37 | Q152: ='[1]Base Produits'!A138 -> P0131 | R152: =HLOOKUP($H$2,'[1]Base Facturation'!$C$5:$ALN$611,T152,0) -> 0 | S152: ='[1]Base Produits'!D138 -> 0 | T152: 138 | U152: 131
D153: =IF(ISERROR(VLOOKUP(C153,'[1]Base Produits'!$A$8:$H$607,2,0)),"",VLOOKUP(C153,'[1]Base Produits'!$A$8:$H$607,2,0)) ->  | E153: =IF(ISERROR(VLOOKUP(C153,'[1]Base Produits'!$A$8:$H$607,3,0)),"",VLOOKUP(C153,'[1]Base Produits'!$A$8:$H$607,3,0)) ->  | K153: 0 | L153: 0 | M153: 0 | N153: 0 | P153: =SUM($O$22:O153) -> 37 | Q153: ='[1]Base Produits'!A139 -> P0132 | R153: =HLOOKUP($H$2,'[1]Base Facturation'!$C$5:$ALN$611,T153,0) -> 0 | S153: ='[1]Base Produits'!D139 -> 0 | T153: 139 | U153: 132
D154: =IF(ISERROR(VLOOKUP(C154,'[1]Base Produits'!$A$8:$H$607,2,0)),"",VLOOKUP(C154,'[1]Base Produits'!$A$8:$H$607,2,0)) ->  | E154: =IF(ISERROR(VLOOKUP(C154,'[1]Base Produits'!$A$8:$H$607,3,0)),"",VLOOKUP(C154,'[1]Base Produits'!$A$8:$H$607,3,0)) ->  | K154: 0 | L154: 0 | M154: 0 | N154: 0 | P154: =SUM($O$22:O154) -> 37 | Q154: ='[1]Base Produits'!A140 -> P0133 | R154: =HLOOKUP($H$2,'[1]Base Facturation'!$C$5:$ALN$611,T154,0) -> 0 | S154: ='[1]Base Produits'!D140 -> 0 | T154: 140 | U154: 133
D155: =IF(ISERROR(VLOOKUP(C155,'[1]Base Produits'!$A$8:$H$607,2,0)),"",VLOOKUP(C155,'[1]Base Produits'!$A$8:$H$607,2,0)) ->  | E155: =IF(ISERROR(VLOOKUP(C155,'[1]Base Produits'!$A$8:$H$607,3,0)),"",VLOOKUP(C155,'[1]Base Produits'!$A$8:$H$607,3,0)) ->  | K155: 0 | L155: 0 | M155: 0 | N155: 0 | P155: =SUM($O$22:O155) -> 37 | Q155: ='[1]Base Produits'!A141 -> P0134 | R155: =HLOOKUP($H$2,'[1]Base Facturation'!$C$5:$ALN$611,T155,0) -> 0 | S155: ='[1]Base Produits'!D141 -> 0 | T155: 141 | U155: 134
D156: =IF(ISERROR(VLOOKUP(C156,'[1]Base Produits'!$A$8:$H$607,2,0)),"",VLOOKUP(C156,'[1]Base Produits'!$A$8:$H$607,2,0)) ->  | E156: =IF(ISERROR(VLOOKUP(C156,'[1]Base Produits'!$A$8:$H$607,3,0)),"",VLOOKUP(C156,'[1]Base Produits'!$A$8:$H$607,3,0)) ->  | K156: 0 | L156: 0 | M156: 0 | N156: 0 | P156: =SUM($O$22:O156) -> 37 | Q156: ='[1]Base Produits'!A142 -> P0135 | R156: =HLOOKUP($H$2,'[1]Base Facturation'!$C$5:$ALN$611,T156,0) -> 0 | S156: ='[1]Base Produits'!D142 -> 0 | T156: 142 | U156: 135
D157: =IF(ISERROR(VLOOKUP(C157,'[1]Base Produits'!$A$8:$H$607,2,0)),"",VLOOKUP(C157,'[1]Base Produits'!$A$8:$H$607,2,0)) ->  | E157: =IF(ISERROR(VLOOKUP(C157,'[1]Base Produits'!$A$8:$H$607,3,0)),"",VLOOKUP(C157,'[1]Base Produits'!$A$8:$H$607,3,0)) ->  | K157: 0 | L157: 0 | M157: 0 | N157: 0 | P157: =SUM($O$22:O157) -> 37 | Q157: ='[1]Base Produits'!A143 -> P0136 | R157: =HLOOKUP($H$2,'[1]Base Facturation'!$C$5:$ALN$611,T157,0) -> 0 | S157: ='[1]Base Produits'!D143 -> 0 | T157: 143 | U157: 136
D158: =IF(ISERROR(VLOOKUP(C158,'[1]Base Produits'!$A$8:$H$607,2,0)),"",VLOOKUP(C158,'[1]Base Produits'!$A$8:$H$607,2,0)) ->  | E158: =IF(ISERROR(VLOOKUP(C158,'[1]Base Produits'!$A$8:$H$607,3,0)),"",VLOOKUP(C158,'[1]Base Produits'!$A$8:$H$607,3,0)) ->  | K158: 0 | L158: 0 | M158: 0 | N158: 0 | P158: =SUM($O$22:O158) -> 37 | Q158: ='[1]Base Produits'!A144 -> P0137 | R158: =HLOOKUP($H$2,'[1]Base Facturation'!$C$5:$ALN$611,T158,0) -> 0 | S158: ='[1]Base Produits'!D144 -> 0 | T158: 144 | U158: 137
D159: =IF(ISERROR(VLOOKUP(C159,'[1]Base Produits'!$A$8:$H$607,2,0)),"",VLOOKUP(C159,'[1]Base Produits'!$A$8:$H$607,2,0)) ->  | E159: =IF(ISERROR(VLOOKUP(C159,'[1]Base Produits'!$A$8:$H$607,3,0)),"",VLOOKUP(C159,'[1]Base Produits'!$A$8:$H$607,3,0)) ->  | K159: 0 | L159: 0 | M159: 0 | N159: 0 | P159: =SUM($O$22:O159) -> 37 | Q159: ='[1]Base Produits'!A145 -> P0138 | R159: =HLOOKUP($H$2,'[1]Base Facturation'!$C$5:$ALN$611,T159,0) -> 0 | S159: ='[1]Base Produits'!D145 -> 0 | T159: 145 | U159: 138
D160: =IF(ISERROR(VLOOKUP(C160,'[1]Base Produits'!$A$8:$H$607,2,0)),"",VLOOKUP(C160,'[1]Base Produits'!$A$8:$H$607,2,0)) ->  | E160: =IF(ISERROR(VLOOKUP(C160,'[1]Base Produits'!$A$8:$H$607,3,0)),"",VLOOKUP(C160,'[1]Base Produits'!$A$8:$H$607,3,0)) ->  | K160: 0 | L160: 0 | M160: 0 | N160: 0 | P160: =SUM($O$22:O160) -> 37 | Q160: ='[1]Base Produits'!A146 -> P0139 | R160: =HLOOKUP($H$2,'[1]Base Facturation'!$C$5:$ALN$611,T160,0) -> 0 | S160: ='[1]Base Produits'!D146 -> 0 | T160: 146 | U160: 139
D161: =IF(ISERROR(VLOOKUP(C161,'[1]Base Produits'!$A$8:$H$607,2,0)),"",VLOOKUP(C161,'[1]Base Produits'!$A$8:$H$607,2,0)) ->  | E161: =IF(ISERROR(VLOOKUP(C161,'[1]Base Produits'!$A$8:$H$607,3,0)),"",VLOOKUP(C161,'[1]Base Produits'!$A$8:$H$607,3,0)) ->  | K161: 0 | L161: 0 | M161: 0 | N161: 0 | P161: =SUM($O$22:O161) -> 37 | Q161: ='[1]Base Produits'!A147 -> P0140 | R161: =HLOOKUP($H$2,'[1]Base Facturation'!$C$5:$ALN$611,T161,0) -> 0 | S161: ='[1]Base Produits'!D147 -> 0 | T161: 147 | U161: 140
D162: =IF(ISERROR(VLOOKUP(C162,'[1]Base Produits'!$A$8:$H$607,2,0)),"",VLOOKUP(C162,'[1]Base Produits'!$A$8:$H$607,2,0)) ->  | E162: =IF(ISERROR(VLOOKUP(C162,'[1]Base Produits'!$A$8:$H$607,3,0)),"",VLOOKUP(C162,'[1]Base Produits'!$A$8:$H$607,3,0)) ->  | K162: 0 | L162: 0 | M162: 0 | N162: 0 | P162: =SUM($O$22:O162) -> 37 | Q162: ='[1]Base Produits'!A148 -> P0141 | R162: =HLOOKUP($H$2,'[1]Base Facturation'!$C$5:$ALN$611,T162,0) -> 0 | S162: ='[1]Base Produits'!D148 -> 0 | T162: 148 | U162: 141
D163: =IF(ISERROR(VLOOKUP(C163,'[1]Base Produits'!$A$8:$H$607,2,0)),"",VLOOKUP(C163,'[1]Base Produits'!$A$8:$H$607,2,0)) ->  | E163: =IF(ISERROR(VLOOKUP(C163,'[1]Base Produits'!$A$8:$H$607,3,0)),"",VLOOKUP(C163,'[1]Base Produits'!$A$8:$H$607,3,0)) ->  | K163: 0 | L163: 0 | M163: 0 | N163: 0 | P163: =SUM($O$22:O163) -> 37 | Q163: ='[1]Base Produits'!A149 -> P0142 | R163: =HLOOKUP($H$2,'[1]Base Facturation'!$C$5:$ALN$611,T163,0) -> 0 | S163: ='[1]Base Produits'!D149 -> 0 | T163: 149 | U163: 142
D164: =IF(ISERROR(VLOOKUP(C164,'[1]Base Produits'!$A$8:$H$607,2,0)),"",VLOOKUP(C164,'[1]Base Produits'!$A$8:$H$607,2,0)) ->  | E164: =IF(ISERROR(VLOOKUP(C164,'[1]Base Produits'!$A$8:$H$607,3,0)),"",VLOOKUP(C164,'[1]Base Produits'!$A$8:$H$607,3,0)) ->  | K164: 0 | L164: 0 | M164: 0 | N164: 0 | P164: =SUM($O$22:O164) -> 37 | Q164: ='[1]Base Produits'!A150 -> P0143 | R164: =HLOOKUP($H$2,'[1]Base Facturation'!$C$5:$ALN$611,T164,0) -> 0 | S164: ='[1]Base Produits'!D150 -> 0 | T164: 150 | U164: 143
D165: =IF(ISERROR(VLOOKUP(C165,'[1]Base Produits'!$A$8:$H$607,2,0)),"",VLOOKUP(C165,'[1]Base Produits'!$A$8:$H$607,2,0)) ->  | E165: =IF(ISERROR(VLOOKUP(C165,'[1]Base Produits'!$A$8:$H$607,3,0)),"",VLOOKUP(C165,'[1]Base Produits'!$A$8:$H$607,3,0)) ->  | K165: 0 | L165: 0 | M165: 0 | N165: 0 | P165: =SUM($O$22:O165) -> 37 | Q165: ='[1]Base Produits'!A151 -> P0144 | R165: =HLOOKUP($H$2,'[1]Base Facturation'!$C$5:$ALN$611,T165,0) -> 0 | S165: ='[1]Base Produits'!D151 -> 0 | T165: 151 | U165: 144
D166: =IF(ISERROR(VLOOKUP(C166,'[1]Base Produits'!$A$8:$H$607,2,0)),"",VLOOKUP(C166,'[1]Base Produits'!$A$8:$H$607,2,0)) ->  | E166: =IF(ISERROR(VLOOKUP(C166,'[1]Base Produits'!$A$8:$H$607,3,0)),"",VLOOKUP(C166,'[1]Base Produits'!$A$8:$H$607,3,0)) ->  | K166: 0 | L166: 0 | M166: 0 | N166: 0 | P166: =SUM($O$22:O166) -> 37 | Q166: ='[1]Base Produits'!A152 -> P0145 | R166: =HLOOKUP($H$2,'[1]Base Facturation'!$C$5:$ALN$611,T166,0) -> 0 | S166: ='[1]Base Produits'!D152 -> 0 | T166: 152 | U166: 145
D167: =IF(ISERROR(VLOOKUP(C167,'[1]Base Produits'!$A$8:$H$607,2,0)),"",VLOOKUP(C167,'[1]Base Produits'!$A$8:$H$607,2,0)) ->  | E167: =IF(ISERROR(VLOOKUP(C167,'[1]Base Produits'!$A$8:$H$607,3,0)),"",VLOOKUP(C167,'[1]Base Produits'!$A$8:$H$607,3,0)) ->  | K167: 0 | L167: 0 | M167: 0 | N167: 0 | P167: =SUM($O$22:O167) -> 37 | Q167: ='[1]Base Produits'!A153 -> P0146 | R167: =HLOOKUP($H$2,'[1]Base Facturation'!$C$5:$ALN$611,T167,0) -> 0 | S167: ='[1]Base Produits'!D153 -> 0 | T167: 153 | U167: 146
D168: =IF(ISERROR(VLOOKUP(C168,'[1]Base Produits'!$A$8:$H$607,2,0)),"",VLOOKUP(C168,'[1]Base Produits'!$A$8:$H$607,2,0)) ->  | E168: =IF(ISERROR(VLOOKUP(C168,'[1]Base Produits'!$A$8:$H$607,3,0)),"",VLOOKUP(C168,'[1]Base Produits'!$A$8:$H$607,3,0)) ->  | K168: 0 | L168: 0 | M168: 0 | N168: 0 | P168: =SUM($O$22:O168) -> 37 | Q168: ='[1]Base Produits'!A154 -> P0147 | R168: =HLOOKUP($H$2,'[1]Base Facturation'!$C$5:$ALN$611,T168,0) -> 0 | S168: ='[1]Base Produits'!D154 -> 0 | T168: 154 | U168: 147
D169: =IF(ISERROR(VLOOKUP(C169,'[1]Base Produits'!$A$8:$H$607,2,0)),"",VLOOKUP(C169,'[1]Base Produits'!$A$8:$H$607,2,0)) ->  | E169: =IF(ISERROR(VLOOKUP(C169,'[1]Base Produits'!$A$8:$H$607,3,0)),"",VLOOKUP(C169,'[1]Base Produits'!$A$8:$H$607,3,0)) ->  | K169: 0 | L169: 0 | M169: 0 | N169: 0 | P169: =SUM($O$22:O169) -> 37 | Q169: ='[1]Base Produits'!A155 -> P0148 | R169: =HLOOKUP($H$2,'[1]Base Facturation'!$C$5:$ALN$611,T169,0) -> 0 | S169: ='[1]Base Produits'!D155 -> 0 | T169: 155 | U169: 148
D170: =IF(ISERROR(VLOOKUP(C170,'[1]Base Produits'!$A$8:$H$607,2,0)),"",VLOOKUP(C170,'[1]Base Produits'!$A$8:$H$607,2,0)) ->  | E170: =IF(ISERROR(VLOOKUP(C170,'[1]Base Produits'!$A$8:$H$607,3,0)),"",VLOOKUP(C170,'[1]Base Produits'!$A$8:$H$607,3,0)) ->  | K170: 0 | L170: 0 | M170: 0 | N170: 0 | P170: =SUM($O$22:O170) -> 37 | Q170: ='[1]Base Produits'!A156 -> P0149 | R170: =HLOOKUP($H$2,'[1]Base Facturation'!$C$5:$ALN$611,T170,0) -> 0 | S170: ='[1]Base Produits'!D156 -> 0 | T170: 156 | U170: 149
D171: =IF(ISERROR(VLOOKUP(C171,'[1]Base Produits'!$A$8:$H$607,2,0)),"",VLOOKUP(C171,'[1]Base Produits'!$A$8:$H$607,2,0)) ->  | E171: =IF(ISERROR(VLOOKUP(C171,'[1]Base Produits'!$A$8:$H$607,3,0)),"",VLOOKUP(C171,'[1]Base Produits'!$A$8:$H$607,3,0)) ->  | K171: 0 | L171: 0 | M171: 0 | N171: 0 | P171: =SUM($O$22:O171) -> 37 | Q171: ='[1]Base Produits'!A157 -> P0150 | R171: =HLOOKUP($H$2,'[1]Base Facturation'!$C$5:$ALN$611,T171,0) -> 0 | S171: ='[1]Base Produits'!D157 -> 0 | T171: 157 | U171: 150
D172: =IF(ISERROR(VLOOKUP(C172,'[1]Base Produits'!$A$8:$H$607,2,0)),"",VLOOKUP(C172,'[1]Base Produits'!$A$8:$H$607,2,0)) ->  | E172: =IF(ISERROR(VLOOKUP(C172,'[1]Base Produits'!$A$8:$H$607,3,0)),"",VLOOKUP(C172,'[1]Base Produits'!$A$8:$H$607,3,0)) ->  | K172: 0 | L172: 0 | M172: 0 | N172: 0 | P172: =SUM($O$22:O172) -> 37 | Q172: ='[1]Base Produits'!A158 -> P0151 | R172: =HLOOKUP($H$2,'[1]Base Facturation'!$C$5:$ALN$611,T172,0) -> 0 | S172: ='[1]Base Produits'!D158 -> 0 | T172: 158 | U172: 151
D173: =IF(ISERROR(VLOOKUP(C173,'[1]Base Produits'!$A$8:$H$607,2,0)),"",VLOOKUP(C173,'[1]Base Produits'!$A$8:$H$607,2,0)) ->  | E173: =IF(ISERROR(VLOOKUP(C173,'[1]Base Produits'!$A$8:$H$607,3,0)),"",VLOOKUP(C173,'[1]Base Produits'!$A$8:$H$607,3,0)) ->  | K173: 0 | L173: 0 | M173: 0 | N173: 0 | P173: =SUM($O$22:O173) -> 37 | Q173: ='[1]Base Produits'!A159 -> P0152 | R173: =HLOOKUP($H$2,'[1]Base Facturation'!$C$5:$ALN$611,T173,0) -> 0 | S173: ='[1]Base Produits'!D159 -> 0 | T173: 159 | U173: 152
D174: =IF(ISERROR(VLOOKUP(C174,'[1]Base Produits'!$A$8:$H$607,2,0)),"",VLOOKUP(C174,'[1]Base Produits'!$A$8:$H$607,2,0)) ->  | E174: =IF(ISERROR(VLOOKUP(C174,'[1]Base Produits'!$A$8:$H$607,3,0)),"",VLOOKUP(C174,'[1]Base Produits'!$A$8:$H$607,3,0)) ->  | K174: =IF($H174=K$19,$H174*$G174,0) -> 0 | L174: 0 | M174: 0 | N174: 0 | P174: =SUM($O$22:O174) -> 37 | Q174: ='[1]Base Produits'!A160 -> P0153 | R174: =HLOOKUP($H$2,'[1]Base Facturation'!$C$5:$ALN$611,T174,0) -> 0 | S174: ='[1]Base Produits'!D160 -> 0 | T174: 160 | U174: 153
D175: =IF(ISERROR(VLOOKUP(C175,'[1]Base Produits'!$A$8:$H$607,2,0)),"",VLOOKUP(C175,'[1]Base Produits'!$A$8:$H$607,2,0)) ->  | E175: =IF(ISERROR(VLOOKUP(C175,'[1]Base Produits'!$A$8:$H$607,3,0)),"",VLOOKUP(C175,'[1]Base Produits'!$A$8:$H$607,3,0)) ->  | K175: 0 | L175: 0 | M175: 0 | N175: 0 | P175: =SUM($O$22:O175) -> 37 | Q175: ='[1]Base Produits'!A161 -> P0154 | R175: =HLOOKUP($H$2,'[1]Base Facturation'!$C$5:$ALN$611,T175,0) -> 0 | S175: ='[1]Base Produits'!D161 -> 0 | T175: 161 | U175: 154
D176: =IF(ISERROR(VLOOKUP(C176,'[1]Base Produits'!$A$8:$H$607,2,0)),"",VLOOKUP(C176,'[1]Base Produits'!$A$8:$H$607,2,0)) ->  | E176: =IF(ISERROR(VLOOKUP(C176,'[1]Base Produits'!$A$8:$H$607,3,0)),"",VLOOKUP(C176,'[1]Base Produits'!$A$8:$H$607,3,0)) ->  | K176: 0 | L176: 0 | M176: 0 | N176: 0 | P176: =SUM($O$22:O176) -> 37 | Q176: ='[1]Base Produits'!A162 -> P0155 | R176: =HLOOKUP($H$2,'[1]Base Facturation'!$C$5:$ALN$611,T176,0) -> 0 | S176: ='[1]Base Produits'!D162 -> 0 | T176: 162 | U176: 155
D177: =IF(ISERROR(VLOOKUP(C177,'[1]Base Produits'!$A$8:$H$607,2,0)),"",VLOOKUP(C177,'[1]Base Produits'!$A$8:$H$607,2,0)) ->  | E177: =IF(ISERROR(VLOOKUP(C177,'[1]Base Produits'!$A$8:$H$607,3,0)),"",VLOOKUP(C177,'[1]Base Produits'!$A$8:$H$607,3,0)) ->  | K177: 0 | L177: 0 | M177: 0 | N177: 0 | P177: =SUM($O$22:O177) -> 37 | Q177: ='[1]Base Produits'!A163 -> P0156 | R177: =HLOOKUP($H$2,'[1]Base Facturation'!$C$5:$ALN$611,T177,0) -> 0 | S177: ='[1]Base Produits'!D163 -> 0 | T177: 163 | U177: 156
D178: =IF(ISERROR(VLOOKUP(C178,'[1]Base Produits'!$A$8:$H$607,2,0)),"",VLOOKUP(C178,'[1]Base Produits'!$A$8:$H$607,2,0)) ->  | E178: =IF(ISERROR(VLOOKUP(C178,'[1]Base Produits'!$A$8:$H$607,3,0)),"",VLOOKUP(C178,'[1]Base Produits'!$A$8:$H$607,3,0)) ->  | K178: 0 | L178: 0 | M178: 0 | N178: 0 | P178: =SUM($O$22:O178) -> 37 | Q178: ='[1]Base Produits'!A164 -> P0157 | R178: =HLOOKUP($H$2,'[1]Base Facturation'!$C$5:$ALN$611,T178,0) -> 0 | S178: ='[1]Base Produits'!D164 -> 0 | T178: 164 | U178: 157
D179: =IF(ISERROR(VLOOKUP(C179,'[1]Base Produits'!$A$8:$H$607,2,0)),"",VLOOKUP(C179,'[1]Base Produits'!$A$8:$H$607,2,0)) ->  | E179: =IF(ISERROR(VLOOKUP(C179,'[1]Base Produits'!$A$8:$H$607,3,0)),"",VLOOKUP(C179,'[1]Base Produits'!$A$8:$H$607,3,0)) ->  | K179: 0 | L179: 0 | M179: 0 | N179: 0 | P179: =SUM($O$22:O179) -> 37 | Q179: ='[1]Base Produits'!A165 -> P0158 | R179: =HLOOKUP($H$2,'[1]Base Facturation'!$C$5:$ALN$611,T179,0) -> 0 | S179: ='[1]Base Produits'!D165 -> 0 | T179: 165 | U179: 158
D180: =IF(ISERROR(VLOOKUP(C180,'[1]Base Produits'!$A$8:$H$607,2,0)),"",VLOOKUP(C180,'[1]Base Produits'!$A$8:$H$607,2,0)) ->  | E180: =IF(ISERROR(VLOOKUP(C180,'[1]Base Produits'!$A$8:$H$607,3,0)),"",VLOOKUP(C180,'[1]Base Produits'!$A$8:$H$607,3,0)) ->  | K180: 0 | L180: 0 | M180: 0 | N180: 0 | P180: =SUM($O$22:O180) -> 37 | Q180: ='[1]Base Produits'!A166 -> P0159 | R180: =HLOOKUP($H$2,'[1]Base Facturation'!$C$5:$ALN$611,T180,0) -> 0 | S180: ='[1]Base Produits'!D166 -> 0 | T180: 166 | U180: 159
D181: =IF(ISERROR(VLOOKUP(C181,'[1]Base Produits'!$A$8:$H$607,2,0)),"",VLOOKUP(C181,'[1]Base Produits'!$A$8:$H$607,2,0)) ->  | E181: =IF(ISERROR(VLOOKUP(C181,'[1]Base Produits'!$A$8:$H$607,3,0)),"",VLOOKUP(C181,'[1]Base Produits'!$A$8:$H$607,3,0)) ->  | K181: 0 | L181: 0 | M181: 0 | N181: 0 | P181: =SUM($O$22:O181) -> 37 | Q181: ='[1]Base Produits'!A167 -> P0160 | R181: =HLOOKUP($H$2,'[1]Base Facturation'!$C$5:$ALN$611,T181,0) -> 0 | S181: ='[1]Base Produits'!D167 -> 0 | T181: 167 | U181: 160
D182: =IF(ISERROR(VLOOKUP(C182,'[1]Base Produits'!$A$8:$H$607,2,0)),"",VLOOKUP(C182,'[1]Base Produits'!$A$8:$H$607,2,0)) ->  | E182: =IF(ISERROR(VLOOKUP(C182,'[1]Base Produits'!$A$8:$H$607,3,0)),"",VLOOKUP(C182,'[1]Base Produits'!$A$8:$H$607,3,0)) ->  | K182: 0 | L182: 0 | M182: 0 | N182: 0 | P182: =SUM($O$22:O182) -> 37 | Q182: ='[1]Base Produits'!A168 -> P0161 | R182: =HLOOKUP($H$2,'[1]Base Facturation'!$C$5:$ALN$611,T182,0) -> 0 | S182: ='[1]Base Produits'!D168 -> 0 | T182: 168 | U182: 161
D183: =IF(ISERROR(VLOOKUP(C183,'[1]Base Produits'!$A$8:$H$607,2,0)),"",VLOOKUP(C183,'[1]Base Produits'!$A$8:$H$607,2,0)) ->  | E183: =IF(ISERROR(VLOOKUP(C183,'[1]Base Produits'!$A$8:$H$607,3,0)),"",VLOOKUP(C183,'[1]Base Produits'!$A$8:$H$607,3,0)) ->  | K183: 0 | L183: 0 | M183: 0 | N183: 0 | P183: =SUM($O$22:O183) -> 37 | Q183: ='[1]Base Produits'!A169 -> P0162 | R183: =HLOOKUP($H$2,'[1]Base Facturation'!$C$5:$ALN$611,T183,0) -> 0 | S183: ='[1]Base Produits'!D169 -> 0 | T183: 169 | U183: 162
D184: =IF(ISERROR(VLOOKUP(C184,'[1]Base Produits'!$A$8:$H$607,2,0)),"",VLOOKUP(C184,'[1]Base Produits'!$A$8:$H$607,2,0)) ->  | E184: =IF(ISERROR(VLOOKUP(C184,'[1]Base Produits'!$A$8:$H$607,3,0)),"",VLOOKUP(C184,'[1]Base Produits'!$A$8:$H$607,3,0)) ->  | K184: 0 | L184: 0 | M184: 0 | N184: 0 | P184: =SUM($O$22:O184) -> 37 | Q184: ='[1]Base Produits'!A170 -> P0163 | R184: =HLOOKUP($H$2,'[1]Base Facturation'!$C$5:$ALN$611,T184,0) -> 0 | S184: ='[1]Base Produits'!D170 -> 0 | T184: 170 | U184: 163
D185: =IF(ISERROR(VLOOKUP(C185,'[1]Base Produits'!$A$8:$H$607,2,0)),"",VLOOKUP(C185,'[1]Base Produits'!$A$8:$H$607,2,0)) ->  | E185: =IF(ISERROR(VLOOKUP(C185,'[1]Base Produits'!$A$8:$H$607,3,0)),"",VLOOKUP(C185,'[1]Base Produits'!$A$8:$H$607,3,0)) ->  | K185: 0 | L185: 0 | M185: 0 | N185: 0 | P185: =SUM($O$22:O185) -> 37 | Q185: ='[1]Base Produits'!A171 -> P0164 | R185: =HLOOKUP($H$2,'[1]Base Facturation'!$C$5:$ALN$611,T185,0) -> 0 | S185: ='[1]Base Produits'!D171 -> 0 | T185: 171 | U185: 164
D186: =IF(ISERROR(VLOOKUP(C186,'[1]Base Produits'!$A$8:$H$607,2,0)),"",VLOOKUP(C186,'[1]Base Produits'!$A$8:$H$607,2,0)) ->  | E186: =IF(ISERROR(VLOOKUP(C186,'[1]Base Produits'!$A$8:$H$607,3,0)),"",VLOOKUP(C186,'[1]Base Produits'!$A$8:$H$607,3,0)) ->  | K186: 0 | L186: 0 | M186: 0 | N186: 0 | P186: =SUM($O$22:O186) -> 37 | Q186: ='[1]Base Produits'!A172 -> P0165 | R186: =HLOOKUP($H$2,'[1]Base Facturation'!$C$5:$ALN$611,T186,0) -> 0 | S186: ='[1]Base Produits'!D172 -> 0 | T186: 172 | U186: 165
D187: =IF(ISERROR(VLOOKUP(C187,'[1]Base Produits'!$A$8:$H$607,2,0)),"",VLOOKUP(C187,'[1]Base Produits'!$A$8:$H$607,2,0)) ->  | E187: =IF(ISERROR(VLOOKUP(C187,'[1]Base Produits'!$A$8:$H$607,3,0)),"",VLOOKUP(C187,'[1]Base Produits'!$A$8:$H$607,3,0)) ->  | K187: 0 | L187: 0 | M187: 0 | N187: 0 | P187: =SUM($O$22:O187) -> 37 | Q187: ='[1]Base Produits'!A173 -> P0166 | R187: =HLOOKUP($H$2,'[1]Base Facturation'!$C$5:$ALN$611,T187,0) -> 0 | S187: ='[1]Base Produits'!D173 -> 0 | T187: 173 | U187: 166
D188: =IF(ISERROR(VLOOKUP(C188,'[1]Base Produits'!$A$8:$H$607,2,0)),"",VLOOKUP(C188,'[1]Base Produits'!$A$8:$H$607,2,0)) ->  | E188: =IF(ISERROR(VLOOKUP(C188,'[1]Base Produits'!$A$8:$H$607,3,0)),"",VLOOKUP(C188,'[1]Base Produits'!$A$8:$H$607,3,0)) ->  | K188: 0 | L188: 0 | M188: 0 | N188: 0 | P188: =SUM($O$22:O188) -> 37 | Q188: ='[1]Base Produits'!A174 -> P0167 | R188: =HLOOKUP($H$2,'[1]Base Facturation'!$C$5:$ALN$611,T188,0) -> 0 | S188: ='[1]Base Produits'!D174 -> 0 | T188: 174 | U188: 167
D189: =IF(ISERROR(VLOOKUP(C189,'[1]Base Produits'!$A$8:$H$607,2,0)),"",VLOOKUP(C189,'[1]Base Produits'!$A$8:$H$607,2,0)) ->  | E189: =IF(ISERROR(VLOOKUP(C189,'[1]Base Produits'!$A$8:$H$607,3,0)),"",VLOOKUP(C189,'[1]Base Produits'!$A$8:$H$607,3,0)) ->  | K189: 0 | L189: 0 | M189: 0 | N189: 0 | P189: =SUM($O$22:O189) -> 37 | Q189: ='[1]Base Produits'!A175 -> P0168 | R189: =HLOOKUP($H$2,'[1]Base Facturation'!$C$5:$ALN$611,T189,0) -> 0 | S189: ='[1]Base Produits'!D175 -> 0 | T189: 175 | U189: 168
D190: =IF(ISERROR(VLOOKUP(C190,'[1]Base Produits'!$A$8:$H$607,2,0)),"",VLOOKUP(C190,'[1]Base Produits'!$A$8:$H$607,2,0)) ->  | E190: =IF(ISERROR(VLOOKUP(C190,'[1]Base Produits'!$A$8:$H$607,3,0)),"",VLOOKUP(C190,'[1]Base Produits'!$A$8:$H$607,3,0)) ->  | K190: 0 | L190: 0 | M190: 0 | N190: 0 | P190: =SUM($O$22:O190) -> 37 | Q190: ='[1]Base Produits'!A176 -> P0169 | R190: =HLOOKUP($H$2,'[1]Base Facturation'!$C$5:$ALN$611,T190,0) -> 0 | S190: ='[1]Base Produits'!D176 -> 0 | T190: 176 | U190: 169
D191: =IF(ISERROR(VLOOKUP(C191,'[1]Base Produits'!$A$8:$H$607,2,0)),"",VLOOKUP(C191,'[1]Base Produits'!$A$8:$H$607,2,0)) ->  | E191: =IF(ISERROR(VLOOKUP(C191,'[1]Base Produits'!$A$8:$H$607,3,0)),"",VLOOKUP(C191,'[1]Base Produits'!$A$8:$H$607,3,0)) ->  | K191: 0 | L191: 0 | M191: 0 | N191: 0 | P191: =SUM($O$22:O191) -> 37 | Q191: ='[1]Base Produits'!A177 -> P0170 | R191: =HLOOKUP($H$2,'[1]Base Facturation'!$C$5:$ALN$611,T191,0) -> 0 | S191: ='[1]Base Produits'!D177 -> 0 | T191: 177 | U191: 170
D192: =IF(ISERROR(VLOOKUP(C192,'[1]Base Produits'!$A$8:$H$607,2,0)),"",VLOOKUP(C192,'[1]Base Produits'!$A$8:$H$607,2,0)) ->  | E192: =IF(ISERROR(VLOOKUP(C192,'[1]Base Produits'!$A$8:$H$607,3,0)),"",VLOOKUP(C192,'[1]Base Produits'!$A$8:$H$607,3,0)) ->  | K192: 0 | L192: 0 | M192: 0 | N192: 0 | P192: =SUM($O$22:O192) -> 37 | Q192: ='[1]Base Produits'!A178 -> P0171 | R192: =HLOOKUP($H$2,'[1]Base Facturation'!$C$5:$ALN$611,T192,0) -> 0 | S192: ='[1]Base Produits'!D178 -> 0 | T192: 178 | U192: 171
D193: =IF(ISERROR(VLOOKUP(C193,'[1]Base Produits'!$A$8:$H$607,2,0)),"",VLOOKUP(C193,'[1]Base Produits'!$A$8:$H$607,2,0)) ->  | E193: =IF(ISERROR(VLOOKUP(C193,'[1]Base Produits'!$A$8:$H$607,3,0)),"",VLOOKUP(C193,'[1]Base Produits'!$A$8:$H$607,3,0)) ->  | K193: 0 | L193: 0 | M193: 0 | N193: 0 | P193: =SUM($O$22:O193) -> 37 | Q193: ='[1]Base Produits'!A179 -> P0172 | R193: =HLOOKUP($H$2,'[1]Base Facturation'!$C$5:$ALN$611,T193,0) -> 0 | S193: ='[1]Base Produits'!D179 -> 0 | T193: 179 | U193: 172
D194: =IF(ISERROR(VLOOKUP(C194,'[1]Base Produits'!$A$8:$H$607,2,0)),"",VLOOKUP(C194,'[1]Base Produits'!$A$8:$H$607,2,0)) ->  | E194: =IF(ISERROR(VLOOKUP(C194,'[1]Base Produits'!$A$8:$H$607,3,0)),"",VLOOKUP(C194,'[1]Base Produits'!$A$8:$H$607,3,0)) ->  | K194: 0 | L194: 0 | M194: 0 | N194: 0 | P194: =SUM($O$22:O194) -> 37 | Q194: ='[1]Base Produits'!A180 -> P0173 | R194: =HLOOKUP($H$2,'[1]Base Facturation'!$C$5:$ALN$611,T194,0) -> 0 | S194: ='[1]Base Produits'!D180 -> 0 | T194: 180 | U194: 173
D195: =IF(ISERROR(VLOOKUP(C195,'[1]Base Produits'!$A$8:$H$607,2,0)),"",VLOOKUP(C195,'[1]Base Produits'!$A$8:$H$607,2,0)) ->  | E195: =IF(ISERROR(VLOOKUP(C195,'[1]Base Produits'!$A$8:$H$607,3,0)),"",VLOOKUP(C195,'[1]Base Produits'!$A$8:$H$607,3,0)) ->  | K195: 0 | L195: 0 | M195: 0 | N195: 0 | P195: =SUM($O$22:O195) -> 37 | Q195: ='[1]Base Produits'!A181 -> P0174 | R195: =HLOOKUP($H$2,'[1]Base Facturation'!$C$5:$ALN$611,T195,0) -> 0 | S195: ='[1]Base Produits'!D181 -> 0 | T195: 181 | U195: 174
D196: =IF(ISERROR(VLOOKUP(C196,'[1]Base Produits'!$A$8:$H$607,2,0)),"",VLOOKUP(C196,'[1]Base Produits'!$A$8:$H$607,2,0)) ->  | E196: =IF(ISERROR(VLOOKUP(C196,'[1]Base Produits'!$A$8:$H$607,3,0)),"",VLOOKUP(C196,'[1]Base Produits'!$A$8:$H$607,3,0)) ->  | F196: x | P196: =SUM($O$22:O196) -> 37 | Q196: ='[1]Base Produits'!A182 -> P0175 | R196: =HLOOKUP($H$2,'[1]Base Facturation'!$C$5:$ALN$611,T196,0) -> 0 | S196: ='[1]Base Produits'!D182 -> 0 | T196: 182 | U196: 175
F197: x | P197: =SUM($O$22:O197) -> 37 | Q197: ='[1]Base Produits'!A183 -> P0176 | R197: =HLOOKUP($H$2,'[1]Base Facturation'!$C$5:$ALN$611,T197,0) -> 0 | S197: ='[1]Base Produits'!D183 -> 0 | T197: 183 | U197: 176
C198: Échéance : | D198: =IF(ISBLANK(HLOOKUP($H$2,'[1]Base Facturation'!$C$5:$ALN$61,5,0)),"",HLOOKUP($H$2,'[1]Base Facturation'!$C$5:$ALN$61,5,0)) -> 2020-02-15 | F198: € HT | G198: =SUM(G20:G196) -> 65705.2 | P198: =SUM($O$22:O198) -> 37 | Q198: ='[1]Base Produits'!A184 -> P0177 | R198: =HLOOKUP($H$2,'[1]Base Facturation'!$C$5:$ALN$611,T198,0) -> 0 | S198: ='[1]Base Produits'!D184 -> 0 | T198: 184 | U198: 177
C199: Règlement : | D199: =IF(ISBLANK(HLOOKUP($H$2,'[1]Base Facturation'!$C$5:$ALN$61,6,0)),"",HLOOKUP($H$2,'[1]Base Facturation'!$C$5:$ALN$61,6,0)) -> virement | F199: =IF(ISBLANK(HLOOKUP($H$2,'[1]Base Facturation'!$C$5:$ALN$61,7,0)),"","Remise :") -> Remise : | G199: =IF(ISBLANK(HLOOKUP($H$2,'[1]Base Facturation'!$C$5:$ALN$61,7,0)),"",HLOOKUP($H$2,'[1]Base Facturation'!$C$5:$ALN$61,7,0)) -> 0 | P199: =SUM($O$22:O199) -> 37 | Q199: ='[1]Base Produits'!A185 -> P0178 | R199: =HLOOKUP($H$2,'[1]Base Facturation'!$C$5:$ALN$611,T199,0) -> 0 | S199: ='[1]Base Produits'!D185 -> 0 | T199: 185 | U199: 178
E200: TOTAL € | F200: HT | G200: =IF(ISERROR(G198-G199*G198),G198,(G198-G199*G198)) -> 65705.2 | P200: =SUM($O$22:O200) -> 37 | Q200: ='[1]Base Produits'!A186 -> P0179 | R200: =HLOOKUP($H$2,'[1]Base Facturation'!$C$5:$ALN$611,T200,0) -> 0 | S200: ='[1]Base Produits'!D186 -> 0 | T200: 186 | U200: 179
F201: TTC | G201: =G200+G206 -> 78661.24 | P201: =SUM($O$22:O201) -> 37 | Q201: ='[1]Base Produits'!A187 -> P0180 | R201: =HLOOKUP($H$2,'[1]Base Facturation'!$C$5:$ALN$611,T201,0) -> 0 | S201: ='[1]Base Produits'!D187 -> 0 | T201: 187 | U201: 180
F202: x | P202: =SUM($O$22:O202) -> 37 | Q202: ='[1]Base Produits'!A188 -> P0181 | R202: =HLOOKUP($H$2,'[1]Base Facturation'!$C$5:$ALN$611,T202,0) -> 0 | S202: ='[1]Base Produits'!D188 -> 0 | T202: 188 | U202: 181
D203: Merci pour votre confiance | F203: =IF(ISBLANK('[1]Vos données'!B19),"","TVA à "&'[1]Vos données'!B19*100&"% :") -> TVA à 5,5% : | G203: =IF(SUM(K22:K53)=0,"",IF(ISERROR(SUM(K22:K53)-G199*SUM(K22:K53)),SUM(K22:K53),SUM(K22:K53)-G199*SUM(K22:K53))) ->  | P203: =SUM($O$22:O203) -> 37 | Q203: ='[1]Base Produits'!A189 -> P0182 | R203: =HLOOKUP($H$2,'[1]Base Facturation'!$C$5:$ALN$611,T203,0) -> 0 | S203: ='[1]Base Produits'!D189 -> 0 | T203: 189 | U203: 182
F204: =IF(ISBLANK('[1]Vos données'!B20),"","TVA à "&'[1]Vos données'!B20*100&"% :") -> TVA à 10% : | G204: =IF(SUM(L22:L53)=0,"",IF(ISERROR(SUM(L22:L53)-G199*SUM(L22:L53)),SUM(L22:L53),SUM(L22:L53)-G199*SUM(L22:L53))) ->  | P204: =SUM($O$22:O204) -> 37 | Q204: ='[1]Base Produits'!A190 -> P0183 | R204: =HLOOKUP($H$2,'[1]Base Facturation'!$C$5:$ALN$611,T204,0) -> 0 | S204: ='[1]Base Produits'!D190 -> 0 | T204: 190 | U204: 183
F205: =IF(ISBLANK('[1]Vos données'!B21),"","TVA à "&'[1]Vos données'!B21*100&"% :") -> TVA à 20% : | G205: =IF(SUM(M22:M53)=0,"",IF(ISERROR(SUM(M22:M53)-G199*SUM(M22:M53)),SUM(M22:M53),SUM(M22:M53)-G199*SUM(M22:M53))) -> 12956.04 | P205: =SUM($O$22:O205) -> 37 | Q205: ='[1]Base Produits'!A191 -> P0184 | R205: =HLOOKUP($H$2,'[1]Base Facturation'!$C$5:$ALN$611,T205,0) -> 0 | S205: ='[1]Base Produits'!D191 -> 0 | T205: 191 | U205: 184
C206: =IF('[1]Vos données'!A24="oui","Exonéré de TVA, article 293-B du CGI","") ->  | F206: Total TVA : | G206: =SUM(G203:G205) -> 12956.04 | P206: =SUM($O$22:O206) -> 37 | Q206: ='[1]Base Produits'!A192 -> P0185 | R206: =HLOOKUP($H$2,'[1]Base Facturation'!$C$5:$ALN$611,T206,0) -> 0 | S206: ='[1]Base Produits'!D192 -> 0 | T206: 192 | U206: 185
F207: x | P207: =SUM($O$22:O207) -> 37 | Q207: ='[1]Base Produits'!A193 -> P0186 | R207: =HLOOKUP($H$2,'[1]Base Facturation'!$C$5:$ALN$611,T207,0) -> 0 | S207: ='[1]Base Produits'!D193 -> 0 | T207: 193 | U207: 186
F208: x | P208: =SUM($O$22:O208) -> 37 | Q208: ='[1]Base Produits'!A194 -> P0187 | R208: =HLOOKUP($H$2,'[1]Base Facturation'!$C$5:$ALN$611,T208,0) -> 0 | S208: ='[1]Base Produits'!D194 -> 0 | T208: 194 | U208: 187
P209: =SUM($O$22:O209) -> 37 | Q209: ='[1]Base Produits'!A195 -> P0188 | R209: =HLOOKUP($H$2,'[1]Base Facturation'!$C$5:$ALN$611,T209,0) -> 0 | S209: ='[1]Base Produits'!D195 -> 0 | T209: 195 | U209: 188
C210: contrôle : | D210: =IF(G200=HLOOKUP(H2,'[1]Base Facturation'!C5:ALN613,609,0),"ok","erreur") -> ok | P210: =SUM($O$22:O210) -> 37 | Q210: ='[1]Base Produits'!A196 -> P0189 | R210: =HLOOKUP($H$2,'[1]Base Facturation'!$C$5:$ALN$611,T210,0) -> 0 | S210: ='[1]Base Produits'!D196 -> 0 | T210: 196 | U210: 189
P211: =SUM($O$22:O211) -> 37 | Q211: ='[1]Base Produits'!A197 -> P0190 | R211: =HLOOKUP($H$2,'[1]Base Facturation'!$C$5:$ALN$611,T211,0) -> 0 | S211: ='[1]Base Produits'!D197 -> 0 | T211: 197 | U211: 190
... 410 more rows
